{"text_format":"1","workbook":"xlsx","n_sheets":3,"sheets":["DOORLIST","EXTRAS","CALCULATIONS"],"not_rendered":{"charts":0,"images":47,"macros":1,"external_links":0,"defined_names":41,"comments":1,"pivot_tables":0},"unopened":[],"bounds":{"document_bytes":16777216,"sheet_cells":100000,"rows_first":2000,"rows_last":500,"rows_between":2000,"halvings":0,"cell_chars":16384,"cell_head_chars":4096},"cells_cut":0,"cells_raw":0,"read":"whole","date_system":"1900"}

{"sheet":"DOORLIST","index":0,"n_rows":170,"n_cols":50,"rows_kept":170,"cut":false,"hidden":false,"merged":[[17,1,18,1],[17,7,18,7],[17,40,18,40],[17,17,17,21],[17,2,18,2],[17,3,18,3],[8,1,13,1],[11,4,11,5],[12,4,12,5],[13,4,13,5],[14,4,14,5],[15,4,15,5],[17,22,17,23],[17,12,18,12],[17,8,17,11],[4,16,15,16],[8,4,8,5],[9,4,9,5],[10,4,10,5],[17,4,18,4],[17,5,18,5],[17,6,18,6],[4,48,14,48],[17,48,18,48],[5,10,5,11],[4,10,4,11],[17,41,18,41],[17,13,17,15],[17,46,18,46],[17,45,18,45],[17,44,18,44],[17,33,17,34],[17,24,17,27],[17,28,17,30],[6,8,6,12],[7,8,14,15],[3,4,3,5],[4,4,4,5],[6,4,6,5],[7,4,7,5],[5,4,5,5]]}
[]
[null,"LETHE CUSTOMER DOORLIST",null,null,null,null,null,null,null,null,null,null,null,null,null,null,null,null,null,null,null,null,null,null,null,null,null,null,null,null,null,null,null,null,null,null,null,null,null,null,null,null,null,{"$f":"VERS","v":"Vers. 7.3 \"Marlene\" - 10.10.2023"}]
[]
[null,null,null,"Company:",null,null,null,null,"HELP",null,"(please select first the number of column & 2nd an option)"]
[null,null,null,"Order No.:",null,null,null,"1.","Column",null,null,null,null,null,null,null,null,null,null,null,null,null,null,null,null,null,null,null,null,null,null,null,null,null,null,null,null,null,null,null,null,null,null,null,null,null,null,null,"This column tagged automatically \nif any remark is doing on second sheet."]
[null,null,null,"Date:",null,null,null,"2.","Options"]
[null,null,null,"Project:",null,null,null,null,"Information (Text)"]
[null,null,null,"Yard:",null,null,null,null,{"$f":"IF(OR(CALCULATIONS!Z17=\"\",CALCULATIONS!Z17=0),\"\",CALCULATIONS!Z17)","v":""}]
[null,null,{"$f":"IF(OR(EXACT(D9,C21:C170)),\"x\",\"\")","v":""},"Rev 0",null,null,"< please fill Date"]
[null,null,{"$f":"IF(OR(EXACT(D10,C21:C170)),\"x\",\"\")","v":""},"Rev 1",null,null,"< please fill Date"]
[null,null,{"$f":"IF(OR(EXACT(D11,C21:C170)),\"x\",\"\")","v":""},"Rev 2",null,null,"< please fill Date"]
[null,null,{"$f":"IF(OR(EXACT(D12,C21:C170)),\"x\",\"\")","v":""},"Rev 3",null,null,"< please fill Date"]
[null,null,{"$f":"IF(OR(EXACT(D13,C21:C170)),\"x\",\"\")","v":""},"Rev 4",null,null,"< please fill Date"]
[null,null,{"$f":"IF(OR(EXACT(D14,C21:C170)),\"x\",\"\")","v":""},"Rev 5",null,null,"< please fill Date"]
[]
[null,null,null,null,{"$f":"VERS","v":"Vers. 7.3 \"Marlene\" - 10.10.2023"},null,null,null,null,null,null,null,null,null,null,null,null,null,null,null,null,null,null,null,null,null,null,null,null,null,null,null,null,null,null,null,null,null,null,null,null,null,null,null,null,null,null,null,"<="]
[null,{"$f":"COLUMN()-1","v":1},{"$f":"COLUMN()-1","v":2},{"$f":"COLUMN()-1","v":3},4,5,6,7,8,9,10,11,12,13,14,15,16,17,18,19,20,21,22,23,24,25,26,27,28,29,30,31,32,33,34,35,36,37,38,39,40,41,42,43,44,45,{"$f":"COLUMN()-1","v":46},null,{"$f":"COLUMN()-1","v":48}]
[{"$f":"LARGE($A21:$A170,1)","v":0},"SEQ.\nNO.","REV.\nNO.","DOOR\nNO.","DESIGN.\nPOSITION I","DESIGN.\nPOSITION II","DOOR\nTYPE","FIRE\nRATING","BASIC DIMENSION",null,null,null,"HINGE\nSIDE","INST. FRAME",null,null,"SILL","DOOR FRAME",null,null,null,null,"LEAF SURFACE DESIGN",null,"LEAF EDGING",null,null,null,"HINGE",null,null,"SEAL.","DOOR","LOCK",null,"HANDLE","HOLE F.","CONTACT","SURF.","NOISE","WINDOW\nDIM","WINDOW\nHEIGHT","HP","REMARK (short version)","DATE OF PLANNED\nAPPROVAL","DATE OF 1st\nAPPROVAL","RESPONS-\nIBILITY",null,"REM. ?"]
[null,null,null,null,null,null,null,null,"CO\n(min 550)","CH\n(min 1200)","HH","SD",null,"MAT","SURF.","DIM.\nB / L / R / T - DEPTH\nor simple as STD","TYPE","GL","TYPE","MAT","HS","RS","HS","RS","TYPE","SURF","VER","DIM","TYPE","E","DIST.\n(Below 250!)","COLOUR","CLOSER","TYPE","BS","TYPE","PZ/WC ?","SWITCH","HINGES","GASKET",null,null,null,"(for additional remakrs pls. refer also to worksheet \"CUSTOMER_EXTRAS\")"]
[]
[{"$f":"_xlfn.NUMBERVALUE(RIGHT($C21))","v":0},1,null,null,null,null,null,null,null,null,null,null,null,null,null,null,null,null,null,null,null,null,null,null,null,null,null,null,null,null,null,null,null,null,null,null,null,null,null,null,null,null,null,null,null,null,null,null,{"$f":"IF(COUNTA(EXTRAS!E21:'EXTRAS'!Q21)>0,\"X\",\"\")","v":""},"A"]
[{"$f":"_xlfn.NUMBERVALUE(RIGHT($C22))","v":0},2,null,null,null,null,null,null,null,null,null,null,null,null,null,null,null,null,null,null,null,null,null,null,null,null,null,null,null,null,null,null,null,null,null,null,null,null,null,null,null,null,null,null,null,null,null,null,{"$f":"IF(COUNTA(EXTRAS!E22:'EXTRAS'!Q22)>0,\"X\",\"\")","v":""},"A"]
[0,3,null,null,null,null,null,null,null,null,null,null,null,null,null,null,null,null,null,null,null,null,null,null,null,null,null,null,null,null,null,null,null,null,null,null,null,null,null,null,null,null,null,null,null,null,null,null,{"$f":"IF(COUNTA(EXTRAS!E23:'EXTRAS'!Q23)>0,\"X\",\"\")","v":""},"A"]
[0,4,null,null,null,null,null,null,null,null,null,null,null,null,null,null,null,null,null,null,null,null,null,null,null,null,null,null,null,null,null,null,null,null,null,null,null,null,null,null,null,null,null,null,null,null,null,null,{"$f":"IF(COUNTA(EXTRAS!E24:'EXTRAS'!Q24)>0,\"X\",\"\")","v":""},"A"]
[0,5,null,null,null,null,null,null,null,null,null,null,null,null,null,null,null,null,null,null,null,null,null,null,null,null,null,null,null,null,null,null,null,null,null,null,null,null,null,null,null,null,null,null,null,null,null,null,{"$f":"IF(COUNTA(EXTRAS!E25:'EXTRAS'!Q25)>0,\"X\",\"\")","v":""},"A"]
[0,6,null,null,null,null,null,null,null,null,null,null,null,null,null,null,null,null,null,null,null,null,null,null,null,null,null,null,null,null,null,null,null,null,null,null,null,null,null,null,null,null,null,null,null,null,null,null,{"$f":"IF(COUNTA(EXTRAS!E26:'EXTRAS'!Q26)>0,\"X\",\"\")","v":""},"A"]
[0,7,null,null,null,null,null,null,null,null,null,null,null,null,null,null,null,null,null,null,null,null,null,null,null,null,null,null,null,null,null,null,null,null,null,null,null,null,null,null,null,null,null,null,null,null,null,null,{"$f":"IF(COUNTA(EXTRAS!E27:'EXTRAS'!Q27)>0,\"X\",\"\")","v":""},"A"]
[0,8,null,null,null,null,null,null,null,null,null,null,null,null,null,null,null,null,null,null,null,null,null,null,null,null,null,null,null,null,null,null,null,null,null,null,null,null,null,null,null,null,null,null,null,null,null,null,{"$f":"IF(COUNTA(EXTRAS!E28:'EXTRAS'!Q28)>0,\"X\",\"\")","v":""},"A"]
[0,9,null,null,null,null,null,null,null,null,null,null,null,null,null,null,null,null,null,null,null,null,null,null,null,null,null,null,null,null,null,null,null,null,null,null,null,null,null,null,null,null,null,null,null,null,null,null,{"$f":"IF(COUNTA(EXTRAS!E29:'EXTRAS'!Q29)>0,\"X\",\"\")","v":""},"A"]
[0,10,null,null,null,null,null,null,null,null,null,null,null,null,null,null,null,null,null,null,null,null,null,null,null,null,null,null,null,null,null,null,null,null,null,null,null,null,null,null,null,null,null,null,null,null,null,null,{"$f":"IF(COUNTA(EXTRAS!E30:'EXTRAS'!Q30)>0,\"X\",\"\")","v":""},"A"]
[0,null,null,null,null,null,null,null,null,null,null,null,null,null,null,null,null,null,null,null,null,null,null,null,null,null,null,null,null,null,null,null,null,null,null,null,null,null,null,null,null,null,null,null,null,null,null,null,{"$f":"IF(COUNTA(EXTRAS!E31:'EXTRAS'!Q31)>0,\"X\",\"\")","v":""},"A"]
[0,null,null,null,null,null,null,null,null,null,null,null,null,null,null,null,null,null,null,null,null,null,null,null,null,null,null,null,null,null,null,null,null,null,null,null,null,null,null,null,null,null,null,null,null,null,null,null,{"$f":"IF(COUNTA(EXTRAS!E32:'EXTRAS'!Q32)>0,\"X\",\"\")","v":""},"A"]
[0,null,null,null,null,null,null,null,null,null,null,null,null,null,null,null,null,null,null,null,null,null,null,null,null,null,null,null,null,null,null,null,null,null,null,null,null,null,null,null,null,null,null,null,null,null,null,null,{"$f":"IF(COUNTA(EXTRAS!E33:'EXTRAS'!Q33)>0,\"X\",\"\")","v":""},"A"]
[0,null,null,null,null,null,null,null,null,null,null,null,null,null,null,null,null,null,null,null,null,null,null,null,null,null,null,null,null,null,null,null,null,null,null,null,null,null,null,null,null,null,null,null,null,null,null,null,{"$f":"IF(COUNTA(EXTRAS!E34:'EXTRAS'!Q34)>0,\"X\",\"\")","v":""},"A"]
[0,null,null,null,null,null,null,null,null,null,null,null,null,null,null,null,null,null,null,null,null,null,null,null,null,null,null,null,null,null,null,null,null,null,null,null,null,null,null,null,null,null,null,null,null,null,null,null,{"$f":"IF(COUNTA(EXTRAS!E35:'EXTRAS'!Q35)>0,\"X\",\"\")","v":""},"A"]
[0,null,null,null,null,null,null,null,null,null,null,null,null,null,null,null,null,null,null,null,null,null,null,null,null,null,null,null,null,null,null,null,null,null,null,null,null,null,null,null,null,null,null,null,null,null,null,null,{"$f":"IF(COUNTA(EXTRAS!E36:'EXTRAS'!Q36)>0,\"X\",\"\")","v":""},"A"]
[0,null,null,null,null,null,null,null,null,null,null,null,null,null,null,null,null,null,null,null,null,null,null,null,null,null,null,null,null,null,null,null,null,null,null,null,null,null,null,null,null,null,null,null,null,null,null,null,{"$f":"IF(COUNTA(EXTRAS!E37:'EXTRAS'!Q37)>0,\"X\",\"\")","v":""},"A"]
[0,null,null,null,null,null,null,null,null,null,null,null,null,null,null,null,null,null,null,null,null,null,null,null,null,null,null,null,null,null,null,null,null,null,null,null,null,null,null,null,null,null,null,null,null,null,null,null,{"$f":"IF(COUNTA(EXTRAS!E38:'EXTRAS'!Q38)>0,\"X\",\"\")","v":""},"A"]
[0,null,null,null,null,null,null,null,null,null,null,null,null,null,null,null,null,null,null,null,null,null,null,null,null,null,null,null,null,null,null,null,null,null,null,null,null,null,null,null,null,null,null,null,null,null,null,null,{"$f":"IF(COUNTA(EXTRAS!E39:'EXTRAS'!Q39)>0,\"X\",\"\")","v":""},"A"]
[0,null,null,null,null,null,null,null,null,null,null,null,null,null,null,null,null,null,null,null,null,null,null,null,null,null,null,null,null,null,null,null,null,null,null,null,null,null,null,null,null,null,null,null,null,null,null,null,{"$f":"IF(COUNTA(EXTRAS!E40:'EXTRAS'!Q40)>0,\"X\",\"\")","v":""},"A"]
[0,null,null,null,null,null,null,null,null,null,null,null,null,null,null,null,null,null,null,null,null,null,null,null,null,null,null,null,null,null,null,null,null,null,null,null,null,null,null,null,null,null,null,null,null,null,null,null,{"$f":"IF(COUNTA(EXTRAS!E41:'EXTRAS'!Q41)>0,\"X\",\"\")","v":""},"A"]
[0,null,null,null,null,null,null,null,null,null,null,null,null,null,null,null,null,null,null,null,null,null,null,null,null,null,null,null,null,null,null,null,null,null,null,null,null,null,null,null,null,null,null,null,null,null,null,null,{"$f":"IF(COUNTA(EXTRAS!E42:'EXTRAS'!Q42)>0,\"X\",\"\")","v":""},"A"]
[0,null,null,null,null,null,null,null,null,null,null,null,null,null,null,null,null,null,null,null,null,null,null,null,null,null,null,null,null,null,null,null,null,null,null,null,null,null,null,null,null,null,null,null,null,null,null,null,{"$f":"IF(COUNTA(EXTRAS!E43:'EXTRAS'!Q43)>0,\"X\",\"\")","v":""},"A"]
[0,null,null,null,null,null,null,null,null,null,null,null,null,null,null,null,null,null,null,null,null,null,null,null,null,null,null,null,null,null,null,null,null,null,null,null,null,null,null,null,null,null,null,null,null,null,null,null,{"$f":"IF(COUNTA(EXTRAS!E44:'EXTRAS'!Q44)>0,\"X\",\"\")","v":""},"A"]
[0,null,null,null,null,null,null,null,null,null,null,null,null,null,null,null,null,null,null,null,null,null,null,null,null,null,null,null,null,null,null,null,null,null,null,null,null,null,null,null,null,null,null,null,null,null,null,null,{"$f":"IF(COUNTA(EXTRAS!E45:'EXTRAS'!Q45)>0,\"X\",\"\")","v":""},"A"]
[0,null,null,null,null,null,null,null,null,null,null,null,null,null,null,null,null,null,null,null,null,null,null,null,null,null,null,null,null,null,null,null,null,null,null,null,null,null,null,null,null,null,null,null,null,null,null,null,{"$f":"IF(COUNTA(EXTRAS!E46:'EXTRAS'!Q46)>0,\"X\",\"\")","v":""},"A"]
[0,null,null,null,null,null,null,null,null,null,null,null,null,null,null,null,null,null,null,null,null,null,null,null,null,null,null,null,null,null,null,null,null,null,null,null,null,null,null,null,null,null,null,null,null,null,null,null,{"$f":"IF(COUNTA(EXTRAS!E47:'EXTRAS'!Q47)>0,\"X\",\"\")","v":""},"A"]
[0,null,null,null,null,null,null,null,null,null,null,null,null,null,null,null,null,null,null,null,null,null,null,null,null,null,null,null,null,null,null,null,null,null,null,null,null,null,null,null,null,null,null,null,null,null,null,null,{"$f":"IF(COUNTA(EXTRAS!E48:'EXTRAS'!Q48)>0,\"X\",\"\")","v":""},"A"]
[0,null,null,null,null,null,null,null,null,null,null,null,null,null,null,null,null,null,null,null,null,null,null,null,null,null,null,null,null,null,null,null,null,null,null,null,null,null,null,null,null,null,null,null,null,null,null,null,{"$f":"IF(COUNTA(EXTRAS!E49:'EXTRAS'!Q49)>0,\"X\",\"\")","v":""},"A"]
[0,null,null,null,null,null,null,null,null,null,null,null,null,null,null,null,null,null,null,null,null,null,null,null,null,null,null,null,null,null,null,null,null,null,null,null,null,null,null,null,null,null,null,null,null,null,null,null,{"$f":"IF(COUNTA(EXTRAS!E50:'EXTRAS'!Q50)>0,\"X\",\"\")","v":""},"A"]
[0,null,null,null,null,null,null,null,null,null,null,null,null,null,null,null,null,null,null,null,null,null,null,null,null,null,null,null,null,null,null,null,null,null,null,null,null,null,null,null,null,null,null,null,null,null,null,null,{"$f":"IF(COUNTA(EXTRAS!E51:'EXTRAS'!Q51)>0,\"X\",\"\")","v":""},"A"]
[0,null,null,null,null,null,null,null,null,null,null,null,null,null,null,null,null,null,null,null,null,null,null,null,null,null,null,null,null,null,null,null,null,null,null,null,null,null,null,null,null,null,null,null,null,null,null,null,{"$f":"IF(COUNTA(EXTRAS!E52:'EXTRAS'!Q52)>0,\"X\",\"\")","v":""},"A"]
[0,null,null,null,null,null,null,null,null,null,null,null,null,null,null,null,null,null,null,null,null,null,null,null,null,null,null,null,null,null,null,null,null,null,null,null,null,null,null,null,null,null,null,null,null,null,null,null,{"$f":"IF(COUNTA(EXTRAS!E53:'EXTRAS'!Q53)>0,\"X\",\"\")","v":""},"A"]
[0,null,null,null,null,null,null,null,null,null,null,null,null,null,null,null,null,null,null,null,null,null,null,null,null,null,null,null,null,null,null,null,null,null,null,null,null,null,null,null,null,null,null,null,null,null,null,null,{"$f":"IF(COUNTA(EXTRAS!E54:'EXTRAS'!Q54)>0,\"X\",\"\")","v":""},"A"]
[0,null,null,null,null,null,null,null,null,null,null,null,null,null,null,null,null,null,null,null,null,null,null,null,null,null,null,null,null,null,null,null,null,null,null,null,null,null,null,null,null,null,null,null,null,null,null,null,{"$f":"IF(COUNTA(EXTRAS!E55:'EXTRAS'!Q55)>0,\"X\",\"\")","v":""},"A"]
[0,null,null,null,null,null,null,null,null,null,null,null,null,null,null,null,null,null,null,null,null,null,null,null,null,null,null,null,null,null,null,null,null,null,null,null,null,null,null,null,null,null,null,null,null,null,null,null,{"$f":"IF(COUNTA(EXTRAS!E56:'EXTRAS'!Q56)>0,\"X\",\"\")","v":""},"A"]
[0,null,null,null,null,null,null,null,null,null,null,null,null,null,null,null,null,null,null,null,null,null,null,null,null,null,null,null,null,null,null,null,null,null,null,null,null,null,null,null,null,null,null,null,null,null,null,null,{"$f":"IF(COUNTA(EXTRAS!E57:'EXTRAS'!Q57)>0,\"X\",\"\")","v":""},"A"]
[0,null,null,null,null,null,null,null,null,null,null,null,null,null,null,null,null,null,null,null,null,null,null,null,null,null,null,null,null,null,null,null,null,null,null,null,null,null,null,null,null,null,null,null,null,null,null,null,{"$f":"IF(COUNTA(EXTRAS!E58:'EXTRAS'!Q58)>0,\"X\",\"\")","v":""},"A"]
[0,null,null,null,null,null,null,null,null,null,null,null,null,null,null,null,null,null,null,null,null,null,null,null,null,null,null,null,null,null,null,null,null,null,null,null,null,null,null,null,null,null,null,null,null,null,null,null,{"$f":"IF(COUNTA(EXTRAS!E59:'EXTRAS'!Q59)>0,\"X\",\"\")","v":""},"A"]
[0,null,null,null,null,null,null,null,null,null,null,null,null,null,null,null,null,null,null,null,null,null,null,null,null,null,null,null,null,null,null,null,null,null,null,null,null,null,null,null,null,null,null,null,null,null,null,null,{"$f":"IF(COUNTA(EXTRAS!E60:'EXTRAS'!Q60)>0,\"X\",\"\")","v":""},"A"]
[0,null,null,null,null,null,null,null,null,null,null,null,null,null,null,null,null,null,null,null,null,null,null,null,null,null,null,null,null,null,null,null,null,null,null,null,null,null,null,null,null,null,null,null,null,null,null,null,{"$f":"IF(COUNTA(EXTRAS!E61:'EXTRAS'!Q61)>0,\"X\",\"\")","v":""},"A"]
[0,null,null,null,null,null,null,null,null,null,null,null,null,null,null,null,null,null,null,null,null,null,null,null,null,null,null,null,null,null,null,null,null,null,null,null,null,null,null,null,null,null,null,null,null,null,null,null,{"$f":"IF(COUNTA(EXTRAS!E62:'EXTRAS'!Q62)>0,\"X\",\"\")","v":""},"A"]
[0,null,null,null,null,null,null,null,null,null,null,null,null,null,null,null,null,null,null,null,null,null,null,null,null,null,null,null,null,null,null,null,null,null,null,null,null,null,null,null,null,null,null,null,null,null,null,null,{"$f":"IF(COUNTA(EXTRAS!E63:'EXTRAS'!Q63)>0,\"X\",\"\")","v":""},"A"]
[0,null,null,null,null,null,null,null,null,null,null,null,null,null,null,null,null,null,null,null,null,null,null,null,null,null,null,null,null,null,null,null,null,null,null,null,null,null,null,null,null,null,null,null,null,null,null,null,{"$f":"IF(COUNTA(EXTRAS!E64:'EXTRAS'!Q64)>0,\"X\",\"\")","v":""},"A"]
[0,null,null,null,null,null,null,null,null,null,null,null,null,null,null,null,null,null,null,null,null,null,null,null,null,null,null,null,null,null,null,null,null,null,null,null,null,null,null,null,null,null,null,null,null,null,null,null,{"$f":"IF(COUNTA(EXTRAS!E65:'EXTRAS'!Q65)>0,\"X\",\"\")","v":""},"A"]
[0,null,null,null,null,null,null,null,null,null,null,null,null,null,null,null,null,null,null,null,null,null,null,null,null,null,null,null,null,null,null,null,null,null,null,null,null,null,null,null,null,null,null,null,null,null,null,null,{"$f":"IF(COUNTA(EXTRAS!E66:'EXTRAS'!Q66)>0,\"X\",\"\")","v":""},"A"]
[0,null,null,null,null,null,null,null,null,null,null,null,null,null,null,null,null,null,null,null,null,null,null,null,null,null,null,null,null,null,null,null,null,null,null,null,null,null,null,null,null,null,null,null,null,null,null,null,{"$f":"IF(COUNTA(EXTRAS!E67:'EXTRAS'!Q67)>0,\"X\",\"\")","v":""},"A"]
[0,null,null,null,null,null,null,null,null,null,null,null,null,null,null,null,null,null,null,null,null,null,null,null,null,null,null,null,null,null,null,null,null,null,null,null,null,null,null,null,null,null,null,null,null,null,null,null,{"$f":"IF(COUNTA(EXTRAS!E68:'EXTRAS'!Q68)>0,\"X\",\"\")","v":""},"A"]
[0,null,null,null,null,null,null,null,null,null,null,null,null,null,null,null,null,null,null,null,null,null,null,null,null,null,null,null,null,null,null,null,null,null,null,null,null,null,null,null,null,null,null,null,null,null,null,null,{"$f":"IF(COUNTA(EXTRAS!E69:'EXTRAS'!Q69)>0,\"X\",\"\")","v":""},"A"]
[0,null,null,null,null,null,null,null,null,null,null,null,null,null,null,null,null,null,null,null,null,null,null,null,null,null,null,null,null,null,null,null,null,null,null,null,null,null,null,null,null,null,null,null,null,null,null,null,{"$f":"IF(COUNTA(EXTRAS!E70:'EXTRAS'!Q70)>0,\"X\",\"\")","v":""},"A"]
[0,null,null,null,null,null,null,null,null,null,null,null,null,null,null,null,null,null,null,null,null,null,null,null,null,null,null,null,null,null,null,null,null,null,null,null,null,null,null,null,null,null,null,null,null,null,null,null,{"$f":"IF(COUNTA(EXTRAS!E71:'EXTRAS'!Q71)>0,\"X\",\"\")","v":""},"A"]
[0,null,null,null,null,null,null,null,null,null,null,null,null,null,null,null,null,null,null,null,null,null,null,null,null,null,null,null,null,null,null,null,null,null,null,null,null,null,null,null,null,null,null,null,null,null,null,null,{"$f":"IF(COUNTA(EXTRAS!E72:'EXTRAS'!Q72)>0,\"X\",\"\")","v":""},"A"]
[0,null,null,null,null,null,null,null,null,null,null,null,null,null,null,null,null,null,null,null,null,null,null,null,null,null,null,null,null,null,null,null,null,null,null,null,null,null,null,null,null,null,null,null,null,null,null,null,{"$f":"IF(COUNTA(EXTRAS!E73:'EXTRAS'!Q73)>0,\"X\",\"\")","v":""},"A"]
[0,null,null,null,null,null,null,null,null,null,null,null,null,null,null,null,null,null,null,null,null,null,null,null,null,null,null,null,null,null,null,null,null,null,null,null,null,null,null,null,null,null,null,null,null,null,null,null,{"$f":"IF(COUNTA(EXTRAS!E74:'EXTRAS'!Q74)>0,\"X\",\"\")","v":""},"A"]
[0,null,null,null,null,null,null,null,null,null,null,null,null,null,null,null,null,null,null,null,null,null,null,null,null,null,null,null,null,null,null,null,null,null,null,null,null,null,null,null,null,null,null,null,null,null,null,null,{"$f":"IF(COUNTA(EXTRAS!E75:'EXTRAS'!Q75)>0,\"X\",\"\")","v":""},"A"]
[0,null,null,null,null,null,null,null,null,null,null,null,null,null,null,null,null,null,null,null,null,null,null,null,null,null,null,null,null,null,null,null,null,null,null,null,null,null,null,null,null,null,null,null,null,null,null,null,{"$f":"IF(COUNTA(EXTRAS!E76:'EXTRAS'!Q76)>0,\"X\",\"\")","v":""},"A"]
[0,null,null,null,null,null,null,null,null,null,null,null,null,null,null,null,null,null,null,null,null,null,null,null,null,null,null,null,null,null,null,null,null,null,null,null,null,null,null,null,null,null,null,null,null,null,null,null,{"$f":"IF(COUNTA(EXTRAS!E77:'EXTRAS'!Q77)>0,\"X\",\"\")","v":""},"A"]
[0,null,null,null,null,null,null,null,null,null,null,null,null,null,null,null,null,null,null,null,null,null,null,null,null,null,null,null,null,null,null,null,null,null,null,null,null,null,null,null,null,null,null,null,null,null,null,null,{"$f":"IF(COUNTA(EXTRAS!E78:'EXTRAS'!Q78)>0,\"X\",\"\")","v":""},"A"]
[0,null,null,null,null,null,null,null,null,null,null,null,null,null,null,null,null,null,null,null,null,null,null,null,null,null,null,null,null,null,null,null,null,null,null,null,null,null,null,null,null,null,null,null,null,null,null,null,{"$f":"IF(COUNTA(EXTRAS!E79:'EXTRAS'!Q79)>0,\"X\",\"\")","v":""},"A"]
[0,null,null,null,null,null,null,null,null,null,null,null,null,null,null,null,null,null,null,null,null,null,null,null,null,null,null,null,null,null,null,null,null,null,null,null,null,null,null,null,null,null,null,null,null,null,null,null,{"$f":"IF(COUNTA(EXTRAS!E80:'EXTRAS'!Q80)>0,\"X\",\"\")","v":""},"A"]
[0,null,null,null,null,null,null,null,null,null,null,null,null,null,null,null,null,null,null,null,null,null,null,null,null,null,null,null,null,null,null,null,null,null,null,null,null,null,null,null,null,null,null,null,null,null,null,null,{"$f":"IF(COUNTA(EXTRAS!E81:'EXTRAS'!Q81)>0,\"X\",\"\")","v":""},"A"]
[0,null,null,null,null,null,null,null,null,null,null,null,null,null,null,null,null,null,null,null,null,null,null,null,null,null,null,null,null,null,null,null,null,null,null,null,null,null,null,null,null,null,null,null,null,null,null,null,{"$f":"IF(COUNTA(EXTRAS!E82:'EXTRAS'!Q82)>0,\"X\",\"\")","v":""},"A"]
[0,null,null,null,null,null,null,null,null,null,null,null,null,null,null,null,null,null,null,null,null,null,null,null,null,null,null,null,null,null,null,null,null,null,null,null,null,null,null,null,null,null,null,null,null,null,null,null,{"$f":"IF(COUNTA(EXTRAS!E83:'EXTRAS'!Q83)>0,\"X\",\"\")","v":""},"A"]
[0,null,null,null,null,null,null,null,null,null,null,null,null,null,null,null,null,null,null,null,null,null,null,null,null,null,null,null,null,null,null,null,null,null,null,null,null,null,null,null,null,null,null,null,null,null,null,null,{"$f":"IF(COUNTA(EXTRAS!E84:'EXTRAS'!Q84)>0,\"X\",\"\")","v":""},"A"]
[0,null,null,null,null,null,null,null,null,null,null,null,null,null,null,null,null,null,null,null,null,null,null,null,null,null,null,null,null,null,null,null,null,null,null,null,null,null,null,null,null,null,null,null,null,null,null,null,{"$f":"IF(COUNTA(EXTRAS!E85:'EXTRAS'!Q85)>0,\"X\",\"\")","v":""},"A"]
[{"$f":"_xlfn.NUMBERVALUE(RIGHT($C86))","v":0},null,null,null,null,null,null,null,null,null,null,null,null,null,null,null,null,null,null,null,null,null,null,null,null,null,null,null,null,null,null,null,null,null,null,null,null,null,null,null,null,null,null,null,null,null,null,null,{"$f":"IF(COUNTA(EXTRAS!E86:'EXTRAS'!Q86)>0,\"X\",\"\")","v":""},"A"]
[0,null,null,null,null,null,null,null,null,null,null,null,null,null,null,null,null,null,null,null,null,null,null,null,null,null,null,null,null,null,null,null,null,null,null,null,null,null,null,null,null,null,null,null,null,null,null,null,{"$f":"IF(COUNTA(EXTRAS!E87:'EXTRAS'!Q87)>0,\"X\",\"\")","v":""},"A"]
[0,null,null,null,null,null,null,null,null,null,null,null,null,null,null,null,null,null,null,null,null,null,null,null,null,null,null,null,null,null,null,null,null,null,null,null,null,null,null,null,null,null,null,null,null,null,null,null,{"$f":"IF(COUNTA(EXTRAS!E88:'EXTRAS'!Q88)>0,\"X\",\"\")","v":""},"A"]
[0,null,null,null,null,null,null,null,null,null,null,null,null,null,null,null,null,null,null,null,null,null,null,null,null,null,null,null,null,null,null,null,null,null,null,null,null,null,null,null,null,null,null,null,null,null,null,null,{"$f":"IF(COUNTA(EXTRAS!E89:'EXTRAS'!Q89)>0,\"X\",\"\")","v":""},"A"]
[0,null,null,null,null,null,null,null,null,null,null,null,null,null,null,null,null,null,null,null,null,null,null,null,null,null,null,null,null,null,null,null,null,null,null,null,null,null,null,null,null,null,null,null,null,null,null,null,{"$f":"IF(COUNTA(EXTRAS!E90:'EXTRAS'!Q90)>0,\"X\",\"\")","v":""},"A"]
[0,null,null,null,null,null,null,null,null,null,null,null,null,null,null,null,null,null,null,null,null,null,null,null,null,null,null,null,null,null,null,null,null,null,null,null,null,null,null,null,null,null,null,null,null,null,null,null,{"$f":"IF(COUNTA(EXTRAS!E91:'EXTRAS'!Q91)>0,\"X\",\"\")","v":""},"A"]
[0,null,null,null,null,null,null,null,null,null,null,null,null,null,null,null,null,null,null,null,null,null,null,null,null,null,null,null,null,null,null,null,null,null,null,null,null,null,null,null,null,null,null,null,null,null,null,null,{"$f":"IF(COUNTA(EXTRAS!E92:'EXTRAS'!Q92)>0,\"X\",\"\")","v":""},"A"]
[0,null,null,null,null,null,null,null,null,null,null,null,null,null,null,null,null,null,null,null,null,null,null,null,null,null,null,null,null,null,null,null,null,null,null,null,null,null,null,null,null,null,null,null,null,null,null,null,{"$f":"IF(COUNTA(EXTRAS!E93:'EXTRAS'!Q93)>0,\"X\",\"\")","v":""},"A"]
[0,null,null,null,null,null,null,null,null,null,null,null,null,null,null,null,null,null,null,null,null,null,null,null,null,null,null,null,null,null,null,null,null,null,null,null,null,null,null,null,null,null,null,null,null,null,null,null,{"$f":"IF(COUNTA(EXTRAS!E94:'EXTRAS'!Q94)>0,\"X\",\"\")","v":""},"A"]
[0,null,null,null,null,null,null,null,null,null,null,null,null,null,null,null,null,null,null,null,null,null,null,null,null,null,null,null,null,null,null,null,null,null,null,null,null,null,null,null,null,null,null,null,null,null,null,null,{"$f":"IF(COUNTA(EXTRAS!E95:'EXTRAS'!Q95)>0,\"X\",\"\")","v":""},"A"]
[0,null,null,null,null,null,null,null,null,null,null,null,null,null,null,null,null,null,null,null,null,null,null,null,null,null,null,null,null,null,null,null,null,null,null,null,null,null,null,null,null,null,null,null,null,null,null,null,{"$f":"IF(COUNTA(EXTRAS!E96:'EXTRAS'!Q96)>0,\"X\",\"\")","v":""},"A"]
[0,null,null,null,null,null,null,null,null,null,null,null,null,null,null,null,null,null,null,null,null,null,null,null,null,null,null,null,null,null,null,null,null,null,null,null,null,null,null,null,null,null,null,null,null,null,null,null,{"$f":"IF(COUNTA(EXTRAS!E97:'EXTRAS'!Q97)>0,\"X\",\"\")","v":""},"A"]
[0,null,null,null,null,null,null,null,null,null,null,null,null,null,null,null,null,null,null,null,null,null,null,null,null,null,null,null,null,null,null,null,null,null,null,null,null,null,null,null,null,null,null,null,null,null,null,null,{"$f":"IF(COUNTA(EXTRAS!E98:'EXTRAS'!Q98)>0,\"X\",\"\")","v":""},"A"]
[0,null,null,null,null,null,null,null,null,null,null,null,null,null,null,null,null,null,null,null,null,null,null,null,null,null,null,null,null,null,null,null,null,null,null,null,null,null,null,null,null,null,null,null,null,null,null,null,{"$f":"IF(COUNTA(EXTRAS!E99:'EXTRAS'!Q99)>0,\"X\",\"\")","v":""},"A"]
[0,null,null,null,null,null,null,null,null,null,null,null,null,null,null,null,null,null,null,null,null,null,null,null,null,null,null,null,null,null,null,null,null,null,null,null,null,null,null,null,null,null,null,null,null,null,null,null,{"$f":"IF(COUNTA(EXTRAS!E100:'EXTRAS'!Q100)>0,\"X\",\"\")","v":""},"A"]
[0,null,null,null,null,null,null,null,null,null,null,null,null,null,null,null,null,null,null,null,null,null,null,null,null,null,null,null,null,null,null,null,null,null,null,null,null,null,null,null,null,null,null,null,null,null,null,null,{"$f":"IF(COUNTA(EXTRAS!E101:'EXTRAS'!Q101)>0,\"X\",\"\")","v":""},"A"]
[0,null,null,null,null,null,null,null,null,null,null,null,null,null,null,null,null,null,null,null,null,null,null,null,null,null,null,null,null,null,null,null,null,null,null,null,null,null,null,null,null,null,null,null,null,null,null,null,{"$f":"IF(COUNTA(EXTRAS!E102:'EXTRAS'!Q102)>0,\"X\",\"\")","v":""},"A"]
[0,null,null,null,null,null,null,null,null,null,null,null,null,null,null,null,null,null,null,null,null,null,null,null,null,null,null,null,null,null,null,null,null,null,null,null,null,null,null,null,null,null,null,null,null,null,null,null,{"$f":"IF(COUNTA(EXTRAS!E103:'EXTRAS'!Q103)>0,\"X\",\"\")","v":""},"A"]
[0,null,null,null,null,null,null,null,null,null,null,null,null,null,null,null,null,null,null,null,null,null,null,null,null,null,null,null,null,null,null,null,null,null,null,null,null,null,null,null,null,null,null,null,null,null,null,null,{"$f":"IF(COUNTA(EXTRAS!E104:'EXTRAS'!Q104)>0,\"X\",\"\")","v":""},"A"]
[0,null,null,null,null,null,null,null,null,null,null,null,null,null,null,null,null,null,null,null,null,null,null,null,null,null,null,null,null,null,null,null,null,null,null,null,null,null,null,null,null,null,null,null,null,null,null,null,{"$f":"IF(COUNTA(EXTRAS!E105:'EXTRAS'!Q105)>0,\"X\",\"\")","v":""},"A"]
[0,null,null,null,null,null,null,null,null,null,null,null,null,null,null,null,null,null,null,null,null,null,null,null,null,null,null,null,null,null,null,null,null,null,null,null,null,null,null,null,null,null,null,null,null,null,null,null,{"$f":"IF(COUNTA(EXTRAS!E106:'EXTRAS'!Q106)>0,\"X\",\"\")","v":""},"A"]
[0,null,null,null,null,null,null,null,null,null,null,null,null,null,null,null,null,null,null,null,null,null,null,null,null,null,null,null,null,null,null,null,null,null,null,null,null,null,null,null,null,null,null,null,null,null,null,null,{"$f":"IF(COUNTA(EXTRAS!E107:'EXTRAS'!Q107)>0,\"X\",\"\")","v":""},"A"]
[0,null,null,null,null,null,null,null,null,null,null,null,null,null,null,null,null,null,null,null,null,null,null,null,null,null,null,null,null,null,null,null,null,null,null,null,null,null,null,null,null,null,null,null,null,null,null,null,{"$f":"IF(COUNTA(EXTRAS!E108:'EXTRAS'!Q108)>0,\"X\",\"\")","v":""},"A"]
[0,null,null,null,null,null,null,null,null,null,null,null,null,null,null,null,null,null,null,null,null,null,null,null,null,null,null,null,null,null,null,null,null,null,null,null,null,null,null,null,null,null,null,null,null,null,null,null,{"$f":"IF(COUNTA(EXTRAS!E109:'EXTRAS'!Q109)>0,\"X\",\"\")","v":""},"A"]
[0,null,null,null,null,null,null,null,null,null,null,null,null,null,null,null,null,null,null,null,null,null,null,null,null,null,null,null,null,null,null,null,null,null,null,null,null,null,null,null,null,null,null,null,null,null,null,null,{"$f":"IF(COUNTA(EXTRAS!E110:'EXTRAS'!Q110)>0,\"X\",\"\")","v":""},"A"]
[0,null,null,null,null,null,null,null,null,null,null,null,null,null,null,null,null,null,null,null,null,null,null,null,null,null,null,null,null,null,null,null,null,null,null,null,null,null,null,null,null,null,null,null,null,null,null,null,{"$f":"IF(COUNTA(EXTRAS!E111:'EXTRAS'!Q111)>0,\"X\",\"\")","v":""},"A"]
[0,null,null,null,null,null,null,null,null,null,null,null,null,null,null,null,null,null,null,null,null,null,null,null,null,null,null,null,null,null,null,null,null,null,null,null,null,null,null,null,null,null,null,null,null,null,null,null,{"$f":"IF(COUNTA(EXTRAS!E112:'EXTRAS'!Q112)>0,\"X\",\"\")","v":""},"A"]
[0,null,null,null,null,null,null,null,null,null,null,null,null,null,null,null,null,null,null,null,null,null,null,null,null,null,null,null,null,null,null,null,null,null,null,null,null,null,null,null,null,null,null,null,null,null,null,null,{"$f":"IF(COUNTA(EXTRAS!E113:'EXTRAS'!Q113)>0,\"X\",\"\")","v":""},"A"]
[0,null,null,null,null,null,null,null,null,null,null,null,null,null,null,null,null,null,null,null,null,null,null,null,null,null,null,null,null,null,null,null,null,null,null,null,null,null,null,null,null,null,null,null,null,null,null,null,{"$f":"IF(COUNTA(EXTRAS!E114:'EXTRAS'!Q114)>0,\"X\",\"\")","v":""},"A"]
[0,null,null,null,null,null,null,null,null,null,null,null,null,null,null,null,null,null,null,null,null,null,null,null,null,null,null,null,null,null,null,null,null,null,null,null,null,null,null,null,null,null,null,null,null,null,null,null,{"$f":"IF(COUNTA(EXTRAS!E115:'EXTRAS'!Q115)>0,\"X\",\"\")","v":""},"A"]
[0,null,null,null,null,null,null,null,null,null,null,null,null,null,null,null,null,null,null,null,null,null,null,null,null,null,null,null,null,null,null,null,null,null,null,null,null,null,null,null,null,null,null,null,null,null,null,null,{"$f":"IF(COUNTA(EXTRAS!E116:'EXTRAS'!Q116)>0,\"X\",\"\")","v":""},"A"]
[0,null,null,null,null,null,null,null,null,null,null,null,null,null,null,null,null,null,null,null,null,null,null,null,null,null,null,null,null,null,null,null,null,null,null,null,null,null,null,null,null,null,null,null,null,null,null,null,{"$f":"IF(COUNTA(EXTRAS!E117:'EXTRAS'!Q117)>0,\"X\",\"\")","v":""},"A"]
[0,null,null,null,null,null,null,null,null,null,null,null,null,null,null,null,null,null,null,null,null,null,null,null,null,null,null,null,null,null,null,null,null,null,null,null,null,null,null,null,null,null,null,null,null,null,null,null,{"$f":"IF(COUNTA(EXTRAS!E118:'EXTRAS'!Q118)>0,\"X\",\"\")","v":""},"A"]
[0,null,null,null,null,null,null,null,null,null,null,null,null,null,null,null,null,null,null,null,null,null,null,null,null,null,null,null,null,null,null,null,null,null,null,null,null,null,null,null,null,null,null,null,null,null,null,null,{"$f":"IF(COUNTA(EXTRAS!E119:'EXTRAS'!Q119)>0,\"X\",\"\")","v":""},"A"]
[0,null,null,null,null,null,null,null,null,null,null,null,null,null,null,null,null,null,null,null,null,null,null,null,null,null,null,null,null,null,null,null,null,null,null,null,null,null,null,null,null,null,null,null,null,null,null,null,{"$f":"IF(COUNTA(EXTRAS!E120:'EXTRAS'!Q120)>0,\"X\",\"\")","v":""},"A"]
[0,null,null,null,null,null,null,null,null,null,null,null,null,null,null,null,null,null,null,null,null,null,null,null,null,null,null,null,null,null,null,null,null,null,null,null,null,null,null,null,null,null,null,null,null,null,null,null,{"$f":"IF(COUNTA(EXTRAS!E121:'EXTRAS'!Q121)>0,\"X\",\"\")","v":""},"A"]
[0,null,null,null,null,null,null,null,null,null,null,null,null,null,null,null,null,null,null,null,null,null,null,null,null,null,null,null,null,null,null,null,null,null,null,null,null,null,null,null,null,null,null,null,null,null,null,null,{"$f":"IF(COUNTA(EXTRAS!E122:'EXTRAS'!Q122)>0,\"X\",\"\")","v":""},"A"]
[0,null,null,null,null,null,null,null,null,null,null,null,null,null,null,null,null,null,null,null,null,null,null,null,null,null,null,null,null,null,null,null,null,null,null,null,null,null,null,null,null,null,null,null,null,null,null,null,{"$f":"IF(COUNTA(EXTRAS!E123:'EXTRAS'!Q123)>0,\"X\",\"\")","v":""},"A"]
[0,null,null,null,null,null,null,null,null,null,null,null,null,null,null,null,null,null,null,null,null,null,null,null,null,null,null,null,null,null,null,null,null,null,null,null,null,null,null,null,null,null,null,null,null,null,null,null,{"$f":"IF(COUNTA(EXTRAS!E124:'EXTRAS'!Q124)>0,\"X\",\"\")","v":""},"A"]
[0,null,null,null,null,null,null,null,null,null,null,null,null,null,null,null,null,null,null,null,null,null,null,null,null,null,null,null,null,null,null,null,null,null,null,null,null,null,null,null,null,null,null,null,null,null,null,null,{"$f":"IF(COUNTA(EXTRAS!E125:'EXTRAS'!Q125)>0,\"X\",\"\")","v":""},"A"]
[0,null,null,null,null,null,null,null,null,null,null,null,null,null,null,null,null,null,null,null,null,null,null,null,null,null,null,null,null,null,null,null,null,null,null,null,null,null,null,null,null,null,null,null,null,null,null,null,{"$f":"IF(COUNTA(EXTRAS!E126:'EXTRAS'!Q126)>0,\"X\",\"\")","v":""},"A"]
[0,null,null,null,null,null,null,null,null,null,null,null,null,null,null,null,null,null,null,null,null,null,null,null,null,null,null,null,null,null,null,null,null,null,null,null,null,null,null,null,null,null,null,null,null,null,null,null,{"$f":"IF(COUNTA(EXTRAS!E127:'EXTRAS'!Q127)>0,\"X\",\"\")","v":""},"A"]
[0,null,null,null,null,null,null,null,null,null,null,null,null,null,null,null,null,null,null,null,null,null,null,null,null,null,null,null,null,null,null,null,null,null,null,null,null,null,null,null,null,null,null,null,null,null,null,null,{"$f":"IF(COUNTA(EXTRAS!E128:'EXTRAS'!Q128)>0,\"X\",\"\")","v":""},"A"]
[0,null,null,null,null,null,null,null,null,null,null,null,null,null,null,null,null,null,null,null,null,null,null,null,null,null,null,null,null,null,null,null,null,null,null,null,null,null,null,null,null,null,null,null,null,null,null,null,{"$f":"IF(COUNTA(EXTRAS!E129:'EXTRAS'!Q129)>0,\"X\",\"\")","v":""},"A"]
[0,null,null,null,null,null,null,null,null,null,null,null,null,null,null,null,null,null,null,null,null,null,null,null,null,null,null,null,null,null,null,null,null,null,null,null,null,null,null,null,null,null,null,null,null,null,null,null,{"$f":"IF(COUNTA(EXTRAS!E130:'EXTRAS'!Q130)>0,\"X\",\"\")","v":""},"A"]
[0,null,null,null,null,null,null,null,null,null,null,null,null,null,null,null,null,null,null,null,null,null,null,null,null,null,null,null,null,null,null,null,null,null,null,null,null,null,null,null,null,null,null,null,null,null,null,null,{"$f":"IF(COUNTA(EXTRAS!E131:'EXTRAS'!Q131)>0,\"X\",\"\")","v":""},"A"]
[0,null,null,null,null,null,null,null,null,null,null,null,null,null,null,null,null,null,null,null,null,null,null,null,null,null,null,null,null,null,null,null,null,null,null,null,null,null,null,null,null,null,null,null,null,null,null,null,{"$f":"IF(COUNTA(EXTRAS!E132:'EXTRAS'!Q132)>0,\"X\",\"\")","v":""},"A"]
[0,null,null,null,null,null,null,null,null,null,null,null,null,null,null,null,null,null,null,null,null,null,null,null,null,null,null,null,null,null,null,null,null,null,null,null,null,null,null,null,null,null,null,null,null,null,null,null,{"$f":"IF(COUNTA(EXTRAS!E133:'EXTRAS'!Q133)>0,\"X\",\"\")","v":""},"A"]
[0,null,null,null,null,null,null,null,null,null,null,null,null,null,null,null,null,null,null,null,null,null,null,null,null,null,null,null,null,null,null,null,null,null,null,null,null,null,null,null,null,null,null,null,null,null,null,null,{"$f":"IF(COUNTA(EXTRAS!E134:'EXTRAS'!Q134)>0,\"X\",\"\")","v":""},"A"]
[0,null,null,null,null,null,null,null,null,null,null,null,null,null,null,null,null,null,null,null,null,null,null,null,null,null,null,null,null,null,null,null,null,null,null,null,null,null,null,null,null,null,null,null,null,null,null,null,{"$f":"IF(COUNTA(EXTRAS!E135:'EXTRAS'!Q135)>0,\"X\",\"\")","v":""},"A"]
[0,null,null,null,null,null,null,null,null,null,null,null,null,null,null,null,null,null,null,null,null,null,null,null,null,null,null,null,null,null,null,null,null,null,null,null,null,null,null,null,null,null,null,null,null,null,null,null,{"$f":"IF(COUNTA(EXTRAS!E136:'EXTRAS'!Q136)>0,\"X\",\"\")","v":""},"A"]
[0,null,null,null,null,null,null,null,null,null,null,null,null,null,null,null,null,null,null,null,null,null,null,null,null,null,null,null,null,null,null,null,null,null,null,null,null,null,null,null,null,null,null,null,null,null,null,null,{"$f":"IF(COUNTA(EXTRAS!E137:'EXTRAS'!Q137)>0,\"X\",\"\")","v":""},"A"]
[0,null,null,null,null,null,null,null,null,null,null,null,null,null,null,null,null,null,null,null,null,null,null,null,null,null,null,null,null,null,null,null,null,null,null,null,null,null,null,null,null,null,null,null,null,null,null,null,{"$f":"IF(COUNTA(EXTRAS!E138:'EXTRAS'!Q138)>0,\"X\",\"\")","v":""},"A"]
[0,null,null,null,null,null,null,null,null,null,null,null,null,null,null,null,null,null,null,null,null,null,null,null,null,null,null,null,null,null,null,null,null,null,null,null,null,null,null,null,null,null,null,null,null,null,null,null,{"$f":"IF(COUNTA(EXTRAS!E139:'EXTRAS'!Q139)>0,\"X\",\"\")","v":""},"A"]
[0,null,null,null,null,null,null,null,null,null,null,null,null,null,null,null,null,null,null,null,null,null,null,null,null,null,null,null,null,null,null,null,null,null,null,null,null,null,null,null,null,null,null,null,null,null,null,null,{"$f":"IF(COUNTA(EXTRAS!E140:'EXTRAS'!Q140)>0,\"X\",\"\")","v":""},"A"]
[0,null,null,null,null,null,null,null,null,null,null,null,null,null,null,null,null,null,null,null,null,null,null,null,null,null,null,null,null,null,null,null,null,null,null,null,null,null,null,null,null,null,null,null,null,null,null,null,{"$f":"IF(COUNTA(EXTRAS!E141:'EXTRAS'!Q141)>0,\"X\",\"\")","v":""},"A"]
[0,null,null,null,null,null,null,null,null,null,null,null,null,null,null,null,null,null,null,null,null,null,null,null,null,null,null,null,null,null,null,null,null,null,null,null,null,null,null,null,null,null,null,null,null,null,null,null,{"$f":"IF(COUNTA(EXTRAS!E142:'EXTRAS'!Q142)>0,\"X\",\"\")","v":""},"A"]
[0,null,null,null,null,null,null,null,null,null,null,null,null,null,null,null,null,null,null,null,null,null,null,null,null,null,null,null,null,null,null,null,null,null,null,null,null,null,null,null,null,null,null,null,null,null,null,null,{"$f":"IF(COUNTA(EXTRAS!E143:'EXTRAS'!Q143)>0,\"X\",\"\")","v":""},"A"]
[0,null,null,null,null,null,null,null,null,null,null,null,null,null,null,null,null,null,null,null,null,null,null,null,null,null,null,null,null,null,null,null,null,null,null,null,null,null,null,null,null,null,null,null,null,null,null,null,{"$f":"IF(COUNTA(EXTRAS!E144:'EXTRAS'!Q144)>0,\"X\",\"\")","v":""},"A"]
[0,null,null,null,null,null,null,null,null,null,null,null,null,null,null,null,null,null,null,null,null,null,null,null,null,null,null,null,null,null,null,null,null,null,null,null,null,null,null,null,null,null,null,null,null,null,null,null,{"$f":"IF(COUNTA(EXTRAS!E145:'EXTRAS'!Q145)>0,\"X\",\"\")","v":""},"A"]
[0,null,null,null,null,null,null,null,null,null,null,null,null,null,null,null,null,null,null,null,null,null,null,null,null,null,null,null,null,null,null,null,null,null,null,null,null,null,null,null,null,null,null,null,null,null,null,null,{"$f":"IF(COUNTA(EXTRAS!E146:'EXTRAS'!Q146)>0,\"X\",\"\")","v":""},"A"]
[0,null,null,null,null,null,null,null,null,null,null,null,null,null,null,null,null,null,null,null,null,null,null,null,null,null,null,null,null,null,null,null,null,null,null,null,null,null,null,null,null,null,null,null,null,null,null,null,{"$f":"IF(COUNTA(EXTRAS!E147:'EXTRAS'!Q147)>0,\"X\",\"\")","v":""},"A"]
[0,null,null,null,null,null,null,null,null,null,null,null,null,null,null,null,null,null,null,null,null,null,null,null,null,null,null,null,null,null,null,null,null,null,null,null,null,null,null,null,null,null,null,null,null,null,null,null,{"$f":"IF(COUNTA(EXTRAS!E148:'EXTRAS'!Q148)>0,\"X\",\"\")","v":""},"A"]
[0,null,null,null,null,null,null,null,null,null,null,null,null,null,null,null,null,null,null,null,null,null,null,null,null,null,null,null,null,null,null,null,null,null,null,null,null,null,null,null,null,null,null,null,null,null,null,null,{"$f":"IF(COUNTA(EXTRAS!E149:'EXTRAS'!Q149)>0,\"X\",\"\")","v":""},"A"]
[{"$f":"_xlfn.NUMBERVALUE(RIGHT($C150))","v":0},null,null,null,null,null,null,null,null,null,null,null,null,null,null,null,null,null,null,null,null,null,null,null,null,null,null,null,null,null,null,null,null,null,null,null,null,null,null,null,null,null,null,null,null,null,null,null,{"$f":"IF(COUNTA(EXTRAS!E150:'EXTRAS'!Q150)>0,\"X\",\"\")","v":""},"A"]
[0,null,null,null,null,null,null,null,null,null,null,null,null,null,null,null,null,null,null,null,null,null,null,null,null,null,null,null,null,null,null,null,null,null,null,null,null,null,null,null,null,null,null,null,null,null,null,null,{"$f":"IF(COUNTA(EXTRAS!E151:'EXTRAS'!Q151)>0,\"X\",\"\")","v":""},"A"]
[0,null,null,null,null,null,null,null,null,null,null,null,null,null,null,null,null,null,null,null,null,null,null,null,null,null,null,null,null,null,null,null,null,null,null,null,null,null,null,null,null,null,null,null,null,null,null,null,{"$f":"IF(COUNTA(EXTRAS!E152:'EXTRAS'!Q152)>0,\"X\",\"\")","v":""},"A"]
[0,null,null,null,null,null,null,null,null,null,null,null,null,null,null,null,null,null,null,null,null,null,null,null,null,null,null,null,null,null,null,null,null,null,null,null,null,null,null,null,null,null,null,null,null,null,null,null,{"$f":"IF(COUNTA(EXTRAS!E153:'EXTRAS'!Q153)>0,\"X\",\"\")","v":""},"A"]
[0,null,null,null,null,null,null,null,null,null,null,null,null,null,null,null,null,null,null,null,null,null,null,null,null,null,null,null,null,null,null,null,null,null,null,null,null,null,null,null,null,null,null,null,null,null,null,null,{"$f":"IF(COUNTA(EXTRAS!E154:'EXTRAS'!Q154)>0,\"X\",\"\")","v":""},"A"]
[0,null,null,null,null,null,null,null,null,null,null,null,null,null,null,null,null,null,null,null,null,null,null,null,null,null,null,null,null,null,null,null,null,null,null,null,null,null,null,null,null,null,null,null,null,null,null,null,{"$f":"IF(COUNTA(EXTRAS!E155:'EXTRAS'!Q155)>0,\"X\",\"\")","v":""},"A"]
[0,null,null,null,null,null,null,null,null,null,null,null,null,null,null,null,null,null,null,null,null,null,null,null,null,null,null,null,null,null,null,null,null,null,null,null,null,null,null,null,null,null,null,null,null,null,null,null,{"$f":"IF(COUNTA(EXTRAS!E156:'EXTRAS'!Q156)>0,\"X\",\"\")","v":""},"A"]
[0,null,null,null,null,null,null,null,null,null,null,null,null,null,null,null,null,null,null,null,null,null,null,null,null,null,null,null,null,null,null,null,null,null,null,null,null,null,null,null,null,null,null,null,null,null,null,null,{"$f":"IF(COUNTA(EXTRAS!E157:'EXTRAS'!Q157)>0,\"X\",\"\")","v":""},"A"]
[0,null,null,null,null,null,null,null,null,null,null,null,null,null,null,null,null,null,null,null,null,null,null,null,null,null,null,null,null,null,null,null,null,null,null,null,null,null,null,null,null,null,null,null,null,null,null,null,{"$f":"IF(COUNTA(EXTRAS!E158:'EXTRAS'!Q158)>0,\"X\",\"\")","v":""},"A"]
[0,null,null,null,null,null,null,null,null,null,null,null,null,null,null,null,null,null,null,null,null,null,null,null,null,null,null,null,null,null,null,null,null,null,null,null,null,null,null,null,null,null,null,null,null,null,null,null,{"$f":"IF(COUNTA(EXTRAS!E159:'EXTRAS'!Q159)>0,\"X\",\"\")","v":""},"A"]
[0,null,null,null,null,null,null,null,null,null,null,null,null,null,null,null,null,null,null,null,null,null,null,null,null,null,null,null,null,null,null,null,null,null,null,null,null,null,null,null,null,null,null,null,null,null,null,null,{"$f":"IF(COUNTA(EXTRAS!E160:'EXTRAS'!Q160)>0,\"X\",\"\")","v":""},"A"]
[0,null,null,null,null,null,null,null,null,null,null,null,null,null,null,null,null,null,null,null,null,null,null,null,null,null,null,null,null,null,null,null,null,null,null,null,null,null,null,null,null,null,null,null,null,null,null,null,{"$f":"IF(COUNTA(EXTRAS!E161:'EXTRAS'!Q161)>0,\"X\",\"\")","v":""},"A"]
[0,null,null,null,null,null,null,null,null,null,null,null,null,null,null,null,null,null,null,null,null,null,null,null,null,null,null,null,null,null,null,null,null,null,null,null,null,null,null,null,null,null,null,null,null,null,null,null,{"$f":"IF(COUNTA(EXTRAS!E162:'EXTRAS'!Q162)>0,\"X\",\"\")","v":""},"A"]
[0,null,null,null,null,null,null,null,null,null,null,null,null,null,null,null,null,null,null,null,null,null,null,null,null,null,null,null,null,null,null,null,null,null,null,null,null,null,null,null,null,null,null,null,null,null,null,null,{"$f":"IF(COUNTA(EXTRAS!E163:'EXTRAS'!Q163)>0,\"X\",\"\")","v":""},"A"]
[0,null,null,null,null,null,null,null,null,null,null,null,null,null,null,null,null,null,null,null,null,null,null,null,null,null,null,null,null,null,null,null,null,null,null,null,null,null,null,null,null,null,null,null,null,null,null,null,{"$f":"IF(COUNTA(EXTRAS!E164:'EXTRAS'!Q164)>0,\"X\",\"\")","v":""},"A"]
[0,null,null,null,null,null,null,null,null,null,null,null,null,null,null,null,null,null,null,null,null,null,null,null,null,null,null,null,null,null,null,null,null,null,null,null,null,null,null,null,null,null,null,null,null,null,null,null,{"$f":"IF(COUNTA(EXTRAS!E165:'EXTRAS'!Q165)>0,\"X\",\"\")","v":""},"A"]
[0,null,null,null,null,null,null,null,null,null,null,null,null,null,null,null,null,null,null,null,null,null,null,null,null,null,null,null,null,null,null,null,null,null,null,null,null,null,null,null,null,null,null,null,null,null,null,null,{"$f":"IF(COUNTA(EXTRAS!E166:'EXTRAS'!Q166)>0,\"X\",\"\")","v":""},"A"]
[0,null,null,null,null,null,null,null,null,null,null,null,null,null,null,null,null,null,null,null,null,null,null,null,null,null,null,null,null,null,null,null,null,null,null,null,null,null,null,null,null,null,null,null,null,null,null,null,{"$f":"IF(COUNTA(EXTRAS!E167:'EXTRAS'!Q167)>0,\"X\",\"\")","v":""},"A"]
[0,null,null,null,null,null,null,null,null,null,null,null,null,null,null,null,null,null,null,null,null,null,null,null,null,null,null,null,null,null,null,null,null,null,null,null,null,null,null,null,null,null,null,null,null,null,null,null,{"$f":"IF(COUNTA(EXTRAS!E168:'EXTRAS'!Q168)>0,\"X\",\"\")","v":""},"A"]
[0,null,null,null,null,null,null,null,null,null,null,null,null,null,null,null,null,null,null,null,null,null,null,null,null,null,null,null,null,null,null,null,null,null,null,null,null,null,null,null,null,null,null,null,null,null,null,null,{"$f":"IF(COUNTA(EXTRAS!E169:'EXTRAS'!Q169)>0,\"X\",\"\")","v":""},"A"]
[0,null,null,null,null,null,null,null,null,null,null,null,null,null,null,null,null,null,null,null,null,null,null,null,null,null,null,null,null,null,null,null,null,null,null,null,null,null,null,null,null,null,null,null,null,null,null,null,{"$f":"IF(COUNTA(EXTRAS!E170:'EXTRAS'!Q170)>0,\"X\",\"\")","v":""},"A"]

{"sheet":"EXTRAS","index":1,"n_rows":170,"n_cols":18,"rows_kept":170,"cut":false,"hidden":false,"merged":[[14,5,14,16],[7,3,7,4],[8,3,8,4],[9,3,9,4],[10,3,10,4],[11,3,11,4],[12,3,12,4],[13,3,13,4],[14,3,14,4],[17,2,18,2],[3,3,3,4],[4,3,4,4],[5,3,5,4],[6,3,6,4]]}
[]
[null,"LETHE CUSTOMER DOORLIST // EXTRAS",null,null,null,null,null,null,null,null,null,null,null,null,null,null,{"$f":"VERS","v":"Vers. 7.3 \"Marlene\" - 10.10.2023"}]
[]
[null,null,"Company:",{"$f":"IF(DOORLIST!E4=\"\",\"\",DOORLIST!E4)","v":""}]
[null,null,"Order No.:",{"$f":"IF(DOORLIST!E5=\"\",\"\",DOORLIST!E5)","v":""}]
[null,null,"Date:",{"$f":"IF(DOORLIST!E6=\"\",\"\",DOORLIST!E6)","v":""}]
[null,null,"Project:",{"$f":"IF(DOORLIST!E7=\"\",\"\",DOORLIST!E7)","v":""}]
[null,null,"Yard:",{"$f":"IF(DOORLIST!E8=\"\",\"\",DOORLIST!E8)","v":""}]
[null,null,{"$f":"IF(DOORLIST!D9=\"\",\"\",DOORLIST!D9)","v":"Rev 0"},{"$f":"IF(DOORLIST!E9=\"\",\"\",DOORLIST!E9)","v":""}]
[null,null,{"$f":"IF(DOORLIST!D10=\"\",\"\",DOORLIST!D10)","v":"Rev 1"},{"$f":"IF(DOORLIST!E10=\"\",\"\",DOORLIST!E10)","v":""}]
[null,null,{"$f":"IF(DOORLIST!D11=\"\",\"\",DOORLIST!D11)","v":"Rev 2"},{"$f":"IF(DOORLIST!E11=\"\",\"\",DOORLIST!E11)","v":""}]
[null,null,{"$f":"IF(DOORLIST!D12=\"\",\"\",DOORLIST!D12)","v":"Rev 3"},{"$f":"IF(DOORLIST!E12=\"\",\"\",DOORLIST!E12)","v":""}]
[null,null,{"$f":"IF(DOORLIST!D13=\"\",\"\",DOORLIST!D13)","v":"Rev 4"},{"$f":"IF(DOORLIST!E13=\"\",\"\",DOORLIST!E13)","v":""}]
[null,null,{"$f":"IF(DOORLIST!D14=\"\",\"\",DOORLIST!D14)","v":"Rev 5"},{"$f":"IF(DOORLIST!E14=\"\",\"\",DOORLIST!E14)","v":""}]
[null,null,null,{"$f":"IF(DOORLIST!E15=\"\",\"\",DOORLIST!E15)","v":""},null,"PLEASE USE THE FREE COLUMNS TO ADD ADDITIONAL REMARKS OR EXTRAS"]
[]
[null,{"$f":"COLUMN()-1","v":1},{"$f":"COLUMN()-1","v":2},3,4,5,6,7,8,9,10,11,12,13,14,15,16]
[null,"SEQ.","REV.\nNO.","DOOR"]
[null,"NO.",null,"NO."]
[]
[null,{"$f":"IF(DOORLIST!B21=\"\",\"\",DOORLIST!B21)","v":1},{"$f":"IF(DOORLIST!C21=\"\",\"\",DOORLIST!C21)","v":""},{"$f":"IF(DOORLIST!D21=\"\",\"\",DOORLIST!D21)","v":""},null,null,null,null,null,null,null,null,null,null,null,null,null,"A"]
[null,{"$f":"IF(DOORLIST!B22=\"\",\"\",DOORLIST!B22)","v":2},{"$f":"IF(DOORLIST!C22=\"\",\"\",DOORLIST!C22)","v":""},{"$f":"IF(DOORLIST!D22=\"\",\"\",DOORLIST!D22)","v":""},null,null,null,null,null,null,null,null,null,null,null,null,null,"A"]
[null,{"$f":"IF(DOORLIST!B23=\"\",\"\",DOORLIST!B23)","v":3},{"$f":"IF(DOORLIST!C23=\"\",\"\",DOORLIST!C23)","v":""},{"$f":"IF(DOORLIST!D23=\"\",\"\",DOORLIST!D23)","v":""},null,null,null,null,null,null,null,null,null,null,null,null,null,"A"]
[null,{"$f":"IF(DOORLIST!B24=\"\",\"\",DOORLIST!B24)","v":4},{"$f":"IF(DOORLIST!C24=\"\",\"\",DOORLIST!C24)","v":""},{"$f":"IF(DOORLIST!D24=\"\",\"\",DOORLIST!D24)","v":""},null,null,null,null,null,null,null,null,null,null,null,null,null,"A"]
[null,{"$f":"IF(DOORLIST!B25=\"\",\"\",DOORLIST!B25)","v":5},{"$f":"IF(DOORLIST!C25=\"\",\"\",DOORLIST!C25)","v":""},{"$f":"IF(DOORLIST!D25=\"\",\"\",DOORLIST!D25)","v":""},null,null,null,null,null,null,null,null,null,null,null,null,null,"A"]
[null,{"$f":"IF(DOORLIST!B26=\"\",\"\",DOORLIST!B26)","v":6},{"$f":"IF(DOORLIST!C26=\"\",\"\",DOORLIST!C26)","v":""},{"$f":"IF(DOORLIST!D26=\"\",\"\",DOORLIST!D26)","v":""},null,null,null,null,null,null,null,null,null,null,null,null,null,"A"]
[null,{"$f":"IF(DOORLIST!B27=\"\",\"\",DOORLIST!B27)","v":7},{"$f":"IF(DOORLIST!C27=\"\",\"\",DOORLIST!C27)","v":""},{"$f":"IF(DOORLIST!D27=\"\",\"\",DOORLIST!D27)","v":""},null,null,null,null,null,null,null,null,null,null,null,null,null,"A"]
[null,{"$f":"IF(DOORLIST!B28=\"\",\"\",DOORLIST!B28)","v":8},{"$f":"IF(DOORLIST!C28=\"\",\"\",DOORLIST!C28)","v":""},{"$f":"IF(DOORLIST!D28=\"\",\"\",DOORLIST!D28)","v":""},null,null,null,null,null,null,null,null,null,null,null,null,null,"A"]
[null,{"$f":"IF(DOORLIST!B29=\"\",\"\",DOORLIST!B29)","v":9},{"$f":"IF(DOORLIST!C29=\"\",\"\",DOORLIST!C29)","v":""},{"$f":"IF(DOORLIST!D29=\"\",\"\",DOORLIST!D29)","v":""},null,null,null,null,null,null,null,null,null,null,null,null,null,"A"]
[null,{"$f":"IF(DOORLIST!B30=\"\",\"\",DOORLIST!B30)","v":10},{"$f":"IF(DOORLIST!C30=\"\",\"\",DOORLIST!C30)","v":""},{"$f":"IF(DOORLIST!D30=\"\",\"\",DOORLIST!D30)","v":""},null,null,null,null,null,null,null,null,null,null,null,null,null,"A"]
[null,{"$f":"IF(DOORLIST!B31=\"\",\"\",DOORLIST!B31)","v":""},{"$f":"IF(DOORLIST!C31=\"\",\"\",DOORLIST!C31)","v":""},{"$f":"IF(DOORLIST!D31=\"\",\"\",DOORLIST!D31)","v":""},null,null,null,null,null,null,null,null,null,null,null,null,null,"A"]
[null,{"$f":"IF(DOORLIST!B32=\"\",\"\",DOORLIST!B32)","v":""},{"$f":"IF(DOORLIST!C32=\"\",\"\",DOORLIST!C32)","v":""},{"$f":"IF(DOORLIST!D32=\"\",\"\",DOORLIST!D32)","v":""},null,null,null,null,null,null,null,null,null,null,null,null,null,"A"]
[null,{"$f":"IF(DOORLIST!B33=\"\",\"\",DOORLIST!B33)","v":""},{"$f":"IF(DOORLIST!C33=\"\",\"\",DOORLIST!C33)","v":""},{"$f":"IF(DOORLIST!D33=\"\",\"\",DOORLIST!D33)","v":""},null,null,null,null,null,null,null,null,null,null,null,null,null,"A"]
[null,{"$f":"IF(DOORLIST!B34=\"\",\"\",DOORLIST!B34)","v":""},{"$f":"IF(DOORLIST!C34=\"\",\"\",DOORLIST!C34)","v":""},{"$f":"IF(DOORLIST!D34=\"\",\"\",DOORLIST!D34)","v":""},null,null,null,null,null,null,null,null,null,null,null,null,null,"A"]
[null,{"$f":"IF(DOORLIST!B35=\"\",\"\",DOORLIST!B35)","v":""},{"$f":"IF(DOORLIST!C35=\"\",\"\",DOORLIST!C35)","v":""},{"$f":"IF(DOORLIST!D35=\"\",\"\",DOORLIST!D35)","v":""},null,null,null,null,null,null,null,null,null,null,null,null,null,"A"]
[null,{"$f":"IF(DOORLIST!B36=\"\",\"\",DOORLIST!B36)","v":""},{"$f":"IF(DOORLIST!C36=\"\",\"\",DOORLIST!C36)","v":""},{"$f":"IF(DOORLIST!D36=\"\",\"\",DOORLIST!D36)","v":""},null,null,null,null,null,null,null,null,null,null,null,null,null,"A"]
[null,{"$f":"IF(DOORLIST!B37=\"\",\"\",DOORLIST!B37)","v":""},{"$f":"IF(DOORLIST!C37=\"\",\"\",DOORLIST!C37)","v":""},{"$f":"IF(DOORLIST!D37=\"\",\"\",DOORLIST!D37)","v":""},null,null,null,null,null,null,null,null,null,null,null,null,null,"A"]
[null,{"$f":"IF(DOORLIST!B38=\"\",\"\",DOORLIST!B38)","v":""},{"$f":"IF(DOORLIST!C38=\"\",\"\",DOORLIST!C38)","v":""},{"$f":"IF(DOORLIST!D38=\"\",\"\",DOORLIST!D38)","v":""},null,null,null,null,null,null,null,null,null,null,null,null,null,"A"]
[null,{"$f":"IF(DOORLIST!B39=\"\",\"\",DOORLIST!B39)","v":""},{"$f":"IF(DOORLIST!C39=\"\",\"\",DOORLIST!C39)","v":""},{"$f":"IF(DOORLIST!D39=\"\",\"\",DOORLIST!D39)","v":""},null,null,null,null,null,null,null,null,null,null,null,null,null,"A"]
[null,{"$f":"IF(DOORLIST!B40=\"\",\"\",DOORLIST!B40)","v":""},{"$f":"IF(DOORLIST!C40=\"\",\"\",DOORLIST!C40)","v":""},{"$f":"IF(DOORLIST!D40=\"\",\"\",DOORLIST!D40)","v":""},null,null,null,null,null,null,null,null,null,null,null,null,null,"A"]
[null,{"$f":"IF(DOORLIST!B41=\"\",\"\",DOORLIST!B41)","v":""},{"$f":"IF(DOORLIST!C41=\"\",\"\",DOORLIST!C41)","v":""},{"$f":"IF(DOORLIST!D41=\"\",\"\",DOORLIST!D41)","v":""},null,null,null,null,null,null,null,null,null,null,null,null,null,"A"]
[null,{"$f":"IF(DOORLIST!B42=\"\",\"\",DOORLIST!B42)","v":""},{"$f":"IF(DOORLIST!C42=\"\",\"\",DOORLIST!C42)","v":""},{"$f":"IF(DOORLIST!D42=\"\",\"\",DOORLIST!D42)","v":""},null,null,null,null,null,null,null,null,null,null,null,null,null,"A"]
[null,{"$f":"IF(DOORLIST!B43=\"\",\"\",DOORLIST!B43)","v":""},{"$f":"IF(DOORLIST!C43=\"\",\"\",DOORLIST!C43)","v":""},{"$f":"IF(DOORLIST!D43=\"\",\"\",DOORLIST!D43)","v":""},null,null,null,null,null,null,null,null,null,null,null,null,null,"A"]
[null,{"$f":"IF(DOORLIST!B44=\"\",\"\",DOORLIST!B44)","v":""},{"$f":"IF(DOORLIST!C44=\"\",\"\",DOORLIST!C44)","v":""},{"$f":"IF(DOORLIST!D44=\"\",\"\",DOORLIST!D44)","v":""},null,null,null,null,null,null,null,null,null,null,null,null,null,"A"]
[null,{"$f":"IF(DOORLIST!B45=\"\",\"\",DOORLIST!B45)","v":""},{"$f":"IF(DOORLIST!C45=\"\",\"\",DOORLIST!C45)","v":""},{"$f":"IF(DOORLIST!D45=\"\",\"\",DOORLIST!D45)","v":""},null,null,null,null,null,null,null,null,null,null,null,null,null,"A"]
[null,{"$f":"IF(DOORLIST!B46=\"\",\"\",DOORLIST!B46)","v":""},{"$f":"IF(DOORLIST!C46=\"\",\"\",DOORLIST!C46)","v":""},{"$f":"IF(DOORLIST!D46=\"\",\"\",DOORLIST!D46)","v":""},null,null,null,null,null,null,null,null,null,null,null,null,null,"A"]
[null,{"$f":"IF(DOORLIST!B47=\"\",\"\",DOORLIST!B47)","v":""},{"$f":"IF(DOORLIST!C47=\"\",\"\",DOORLIST!C47)","v":""},{"$f":"IF(DOORLIST!D47=\"\",\"\",DOORLIST!D47)","v":""},null,null,null,null,null,null,null,null,null,null,null,null,null,"A"]
[null,{"$f":"IF(DOORLIST!B48=\"\",\"\",DOORLIST!B48)","v":""},{"$f":"IF(DOORLIST!C48=\"\",\"\",DOORLIST!C48)","v":""},{"$f":"IF(DOORLIST!D48=\"\",\"\",DOORLIST!D48)","v":""},null,null,null,null,null,null,null,null,null,null,null,null,null,"A"]
[null,{"$f":"IF(DOORLIST!B49=\"\",\"\",DOORLIST!B49)","v":""},{"$f":"IF(DOORLIST!C49=\"\",\"\",DOORLIST!C49)","v":""},{"$f":"IF(DOORLIST!D49=\"\",\"\",DOORLIST!D49)","v":""},null,null,null,null,null,null,null,null,null,null,null,null,null,"A"]
[null,{"$f":"IF(DOORLIST!B50=\"\",\"\",DOORLIST!B50)","v":""},{"$f":"IF(DOORLIST!C50=\"\",\"\",DOORLIST!C50)","v":""},{"$f":"IF(DOORLIST!D50=\"\",\"\",DOORLIST!D50)","v":""},null,null,null,null,null,null,null,null,null,null,null,null,null,"A"]
[null,{"$f":"IF(DOORLIST!B51=\"\",\"\",DOORLIST!B51)","v":""},{"$f":"IF(DOORLIST!C51=\"\",\"\",DOORLIST!C51)","v":""},{"$f":"IF(DOORLIST!D51=\"\",\"\",DOORLIST!D51)","v":""},null,null,null,null,null,null,null,null,null,null,null,null,null,"A"]
[null,{"$f":"IF(DOORLIST!B52=\"\",\"\",DOORLIST!B52)","v":""},{"$f":"IF(DOORLIST!C52=\"\",\"\",DOORLIST!C52)","v":""},{"$f":"IF(DOORLIST!D52=\"\",\"\",DOORLIST!D52)","v":""},null,null,null,null,null,null,null,null,null,null,null,null,null,"A"]
[null,{"$f":"IF(DOORLIST!B53=\"\",\"\",DOORLIST!B53)","v":""},{"$f":"IF(DOORLIST!C53=\"\",\"\",DOORLIST!C53)","v":""},{"$f":"IF(DOORLIST!D53=\"\",\"\",DOORLIST!D53)","v":""},null,null,null,null,null,null,null,null,null,null,null,null,null,"A"]
[null,{"$f":"IF(DOORLIST!B54=\"\",\"\",DOORLIST!B54)","v":""},{"$f":"IF(DOORLIST!C54=\"\",\"\",DOORLIST!C54)","v":""},{"$f":"IF(DOORLIST!D54=\"\",\"\",DOORLIST!D54)","v":""},null,null,null,null,null,null,null,null,null,null,null,null,null,"A"]
[null,{"$f":"IF(DOORLIST!B55=\"\",\"\",DOORLIST!B55)","v":""},{"$f":"IF(DOORLIST!C55=\"\",\"\",DOORLIST!C55)","v":""},{"$f":"IF(DOORLIST!D55=\"\",\"\",DOORLIST!D55)","v":""},null,null,null,null,null,null,null,null,null,null,null,null,null,"A"]
[null,{"$f":"IF(DOORLIST!B56=\"\",\"\",DOORLIST!B56)","v":""},{"$f":"IF(DOORLIST!C56=\"\",\"\",DOORLIST!C56)","v":""},{"$f":"IF(DOORLIST!D56=\"\",\"\",DOORLIST!D56)","v":""},null,null,null,null,null,null,null,null,null,null,null,null,null,"A"]
[null,{"$f":"IF(DOORLIST!B57=\"\",\"\",DOORLIST!B57)","v":""},{"$f":"IF(DOORLIST!C57=\"\",\"\",DOORLIST!C57)","v":""},{"$f":"IF(DOORLIST!D57=\"\",\"\",DOORLIST!D57)","v":""},null,null,null,null,null,null,null,null,null,null,null,null,null,"A"]
[null,{"$f":"IF(DOORLIST!B58=\"\",\"\",DOORLIST!B58)","v":""},{"$f":"IF(DOORLIST!C58=\"\",\"\",DOORLIST!C58)","v":""},{"$f":"IF(DOORLIST!D58=\"\",\"\",DOORLIST!D58)","v":""},null,null,null,null,null,null,null,null,null,null,null,null,null,"A"]
[null,{"$f":"IF(DOORLIST!B59=\"\",\"\",DOORLIST!B59)","v":""},{"$f":"IF(DOORLIST!C59=\"\",\"\",DOORLIST!C59)","v":""},{"$f":"IF(DOORLIST!D59=\"\",\"\",DOORLIST!D59)","v":""},null,null,null,null,null,null,null,null,null,null,null,null,null,"A"]
[null,{"$f":"IF(DOORLIST!B60=\"\",\"\",DOORLIST!B60)","v":""},{"$f":"IF(DOORLIST!C60=\"\",\"\",DOORLIST!C60)","v":""},{"$f":"IF(DOORLIST!D60=\"\",\"\",DOORLIST!D60)","v":""},null,null,null,null,null,null,null,null,null,null,null,null,null,"A"]
[null,{"$f":"IF(DOORLIST!B61=\"\",\"\",DOORLIST!B61)","v":""},{"$f":"IF(DOORLIST!C61=\"\",\"\",DOORLIST!C61)","v":""},{"$f":"IF(DOORLIST!D61=\"\",\"\",DOORLIST!D61)","v":""},null,null,null,null,null,null,null,null,null,null,null,null,null,"A"]
[null,{"$f":"IF(DOORLIST!B62=\"\",\"\",DOORLIST!B62)","v":""},{"$f":"IF(DOORLIST!C62=\"\",\"\",DOORLIST!C62)","v":""},{"$f":"IF(DOORLIST!D62=\"\",\"\",DOORLIST!D62)","v":""},null,null,null,null,null,null,null,null,null,null,null,null,null,"A"]
[null,{"$f":"IF(DOORLIST!B63=\"\",\"\",DOORLIST!B63)","v":""},{"$f":"IF(DOORLIST!C63=\"\",\"\",DOORLIST!C63)","v":""},{"$f":"IF(DOORLIST!D63=\"\",\"\",DOORLIST!D63)","v":""},null,null,null,null,null,null,null,null,null,null,null,null,null,"A"]
[null,{"$f":"IF(DOORLIST!B64=\"\",\"\",DOORLIST!B64)","v":""},{"$f":"IF(DOORLIST!C64=\"\",\"\",DOORLIST!C64)","v":""},{"$f":"IF(DOORLIST!D64=\"\",\"\",DOORLIST!D64)","v":""},null,null,null,null,null,null,null,null,null,null,null,null,null,"A"]
[null,{"$f":"IF(DOORLIST!B65=\"\",\"\",DOORLIST!B65)","v":""},{"$f":"IF(DOORLIST!C65=\"\",\"\",DOORLIST!C65)","v":""},{"$f":"IF(DOORLIST!D65=\"\",\"\",DOORLIST!D65)","v":""},null,null,null,null,null,null,null,null,null,null,null,null,null,"A"]
[null,{"$f":"IF(DOORLIST!B66=\"\",\"\",DOORLIST!B66)","v":""},{"$f":"IF(DOORLIST!C66=\"\",\"\",DOORLIST!C66)","v":""},{"$f":"IF(DOORLIST!D66=\"\",\"\",DOORLIST!D66)","v":""},null,null,null,null,null,null,null,null,null,null,null,null,null,"A"]
[null,{"$f":"IF(DOORLIST!B67=\"\",\"\",DOORLIST!B67)","v":""},{"$f":"IF(DOORLIST!C67=\"\",\"\",DOORLIST!C67)","v":""},{"$f":"IF(DOORLIST!D67=\"\",\"\",DOORLIST!D67)","v":""},null,null,null,null,null,null,null,null,null,null,null,null,null,"A"]
[null,{"$f":"IF(DOORLIST!B68=\"\",\"\",DOORLIST!B68)","v":""},{"$f":"IF(DOORLIST!C68=\"\",\"\",DOORLIST!C68)","v":""},{"$f":"IF(DOORLIST!D68=\"\",\"\",DOORLIST!D68)","v":""},null,null,null,null,null,null,null,null,null,null,null,null,null,"A"]
[null,{"$f":"IF(DOORLIST!B69=\"\",\"\",DOORLIST!B69)","v":""},{"$f":"IF(DOORLIST!C69=\"\",\"\",DOORLIST!C69)","v":""},{"$f":"IF(DOORLIST!D69=\"\",\"\",DOORLIST!D69)","v":""},null,null,null,null,null,null,null,null,null,null,null,null,null,"A"]
[null,{"$f":"IF(DOORLIST!B70=\"\",\"\",DOORLIST!B70)","v":""},{"$f":"IF(DOORLIST!C70=\"\",\"\",DOORLIST!C70)","v":""},{"$f":"IF(DOORLIST!D70=\"\",\"\",DOORLIST!D70)","v":""},null,null,null,null,null,null,null,null,null,null,null,null,null,"A"]
[null,{"$f":"IF(DOORLIST!B71=\"\",\"\",DOORLIST!B71)","v":""},{"$f":"IF(DOORLIST!C71=\"\",\"\",DOORLIST!C71)","v":""},{"$f":"IF(DOORLIST!D71=\"\",\"\",DOORLIST!D71)","v":""},null,null,null,null,null,null,null,null,null,null,null,null,null,"A"]
[null,{"$f":"IF(DOORLIST!B72=\"\",\"\",DOORLIST!B72)","v":""},{"$f":"IF(DOORLIST!C72=\"\",\"\",DOORLIST!C72)","v":""},{"$f":"IF(DOORLIST!D72=\"\",\"\",DOORLIST!D72)","v":""},null,null,null,null,null,null,null,null,null,null,null,null,null,"A"]
[null,{"$f":"IF(DOORLIST!B73=\"\",\"\",DOORLIST!B73)","v":""},{"$f":"IF(DOORLIST!C73=\"\",\"\",DOORLIST!C73)","v":""},{"$f":"IF(DOORLIST!D73=\"\",\"\",DOORLIST!D73)","v":""},null,null,null,null,null,null,null,null,null,null,null,null,null,"A"]
[null,{"$f":"IF(DOORLIST!B74=\"\",\"\",DOORLIST!B74)","v":""},{"$f":"IF(DOORLIST!C74=\"\",\"\",DOORLIST!C74)","v":""},{"$f":"IF(DOORLIST!D74=\"\",\"\",DOORLIST!D74)","v":""},null,null,null,null,null,null,null,null,null,null,null,null,null,"A"]
[null,{"$f":"IF(DOORLIST!B75=\"\",\"\",DOORLIST!B75)","v":""},{"$f":"IF(DOORLIST!C75=\"\",\"\",DOORLIST!C75)","v":""},{"$f":"IF(DOORLIST!D75=\"\",\"\",DOORLIST!D75)","v":""},null,null,null,null,null,null,null,null,null,null,null,null,null,"A"]
[null,{"$f":"IF(DOORLIST!B76=\"\",\"\",DOORLIST!B76)","v":""},{"$f":"IF(DOORLIST!C76=\"\",\"\",DOORLIST!C76)","v":""},{"$f":"IF(DOORLIST!D76=\"\",\"\",DOORLIST!D76)","v":""},null,null,null,null,null,null,null,null,null,null,null,null,null,"A"]
[null,{"$f":"IF(DOORLIST!B77=\"\",\"\",DOORLIST!B77)","v":""},{"$f":"IF(DOORLIST!C77=\"\",\"\",DOORLIST!C77)","v":""},{"$f":"IF(DOORLIST!D77=\"\",\"\",DOORLIST!D77)","v":""},null,null,null,null,null,null,null,null,null,null,null,null,null,"A"]
[null,{"$f":"IF(DOORLIST!B78=\"\",\"\",DOORLIST!B78)","v":""},{"$f":"IF(DOORLIST!C78=\"\",\"\",DOORLIST!C78)","v":""},{"$f":"IF(DOORLIST!D78=\"\",\"\",DOORLIST!D78)","v":""},null,null,null,null,null,null,null,null,null,null,null,null,null,"A"]
[null,{"$f":"IF(DOORLIST!B79=\"\",\"\",DOORLIST!B79)","v":""},{"$f":"IF(DOORLIST!C79=\"\",\"\",DOORLIST!C79)","v":""},{"$f":"IF(DOORLIST!D79=\"\",\"\",DOORLIST!D79)","v":""},null,null,null,null,null,null,null,null,null,null,null,null,null,"A"]
[null,{"$f":"IF(DOORLIST!B80=\"\",\"\",DOORLIST!B80)","v":""},{"$f":"IF(DOORLIST!C80=\"\",\"\",DOORLIST!C80)","v":""},{"$f":"IF(DOORLIST!D80=\"\",\"\",DOORLIST!D80)","v":""},null,null,null,null,null,null,null,null,null,null,null,null,null,"A"]
[null,{"$f":"IF(DOORLIST!B81=\"\",\"\",DOORLIST!B81)","v":""},{"$f":"IF(DOORLIST!C81=\"\",\"\",DOORLIST!C81)","v":""},{"$f":"IF(DOORLIST!D81=\"\",\"\",DOORLIST!D81)","v":""},null,null,null,null,null,null,null,null,null,null,null,null,null,"A"]
[null,{"$f":"IF(DOORLIST!B82=\"\",\"\",DOORLIST!B82)","v":""},{"$f":"IF(DOORLIST!C82=\"\",\"\",DOORLIST!C82)","v":""},{"$f":"IF(DOORLIST!D82=\"\",\"\",DOORLIST!D82)","v":""},null,null,null,null,null,null,null,null,null,null,null,null,null,"A"]
[null,{"$f":"IF(DOORLIST!B83=\"\",\"\",DOORLIST!B83)","v":""},{"$f":"IF(DOORLIST!C83=\"\",\"\",DOORLIST!C83)","v":""},{"$f":"IF(DOORLIST!D83=\"\",\"\",DOORLIST!D83)","v":""},null,null,null,null,null,null,null,null,null,null,null,null,null,"A"]
[null,{"$f":"IF(DOORLIST!B84=\"\",\"\",DOORLIST!B84)","v":""},{"$f":"IF(DOORLIST!C84=\"\",\"\",DOORLIST!C84)","v":""},{"$f":"IF(DOORLIST!D84=\"\",\"\",DOORLIST!D84)","v":""},null,null,null,null,null,null,null,null,null,null,null,null,null,"A"]
[null,{"$f":"IF(DOORLIST!B85=\"\",\"\",DOORLIST!B85)","v":""},{"$f":"IF(DOORLIST!C85=\"\",\"\",DOORLIST!C85)","v":""},{"$f":"IF(DOORLIST!D85=\"\",\"\",DOORLIST!D85)","v":""},null,null,null,null,null,null,null,null,null,null,null,null,null,"A"]
[null,{"$f":"IF(DOORLIST!B86=\"\",\"\",DOORLIST!B86)","v":""},{"$f":"IF(DOORLIST!C86=\"\",\"\",DOORLIST!C86)","v":""},{"$f":"IF(DOORLIST!D86=\"\",\"\",DOORLIST!D86)","v":""},null,null,null,null,null,null,null,null,null,null,null,null,null,"A"]
[null,{"$f":"IF(DOORLIST!B87=\"\",\"\",DOORLIST!B87)","v":""},{"$f":"IF(DOORLIST!C87=\"\",\"\",DOORLIST!C87)","v":""},{"$f":"IF(DOORLIST!D87=\"\",\"\",DOORLIST!D87)","v":""},null,null,null,null,null,null,null,null,null,null,null,null,null,"A"]
[null,{"$f":"IF(DOORLIST!B88=\"\",\"\",DOORLIST!B88)","v":""},{"$f":"IF(DOORLIST!C88=\"\",\"\",DOORLIST!C88)","v":""},{"$f":"IF(DOORLIST!D88=\"\",\"\",DOORLIST!D88)","v":""},null,null,null,null,null,null,null,null,null,null,null,null,null,"A"]
[null,{"$f":"IF(DOORLIST!B89=\"\",\"\",DOORLIST!B89)","v":""},{"$f":"IF(DOORLIST!C89=\"\",\"\",DOORLIST!C89)","v":""},{"$f":"IF(DOORLIST!D89=\"\",\"\",DOORLIST!D89)","v":""},null,null,null,null,null,null,null,null,null,null,null,null,null,"A"]
[null,{"$f":"IF(DOORLIST!B90=\"\",\"\",DOORLIST!B90)","v":""},{"$f":"IF(DOORLIST!C90=\"\",\"\",DOORLIST!C90)","v":""},{"$f":"IF(DOORLIST!D90=\"\",\"\",DOORLIST!D90)","v":""},null,null,null,null,null,null,null,null,null,null,null,null,null,"A"]
[null,{"$f":"IF(DOORLIST!B91=\"\",\"\",DOORLIST!B91)","v":""},{"$f":"IF(DOORLIST!C91=\"\",\"\",DOORLIST!C91)","v":""},{"$f":"IF(DOORLIST!D91=\"\",\"\",DOORLIST!D91)","v":""},null,null,null,null,null,null,null,null,null,null,null,null,null,"A"]
[null,{"$f":"IF(DOORLIST!B92=\"\",\"\",DOORLIST!B92)","v":""},{"$f":"IF(DOORLIST!C92=\"\",\"\",DOORLIST!C92)","v":""},{"$f":"IF(DOORLIST!D92=\"\",\"\",DOORLIST!D92)","v":""},null,null,null,null,null,null,null,null,null,null,null,null,null,"A"]
[null,{"$f":"IF(DOORLIST!B93=\"\",\"\",DOORLIST!B93)","v":""},{"$f":"IF(DOORLIST!C93=\"\",\"\",DOORLIST!C93)","v":""},{"$f":"IF(DOORLIST!D93=\"\",\"\",DOORLIST!D93)","v":""},null,null,null,null,null,null,null,null,null,null,null,null,null,"A"]
[null,{"$f":"IF(DOORLIST!B94=\"\",\"\",DOORLIST!B94)","v":""},{"$f":"IF(DOORLIST!C94=\"\",\"\",DOORLIST!C94)","v":""},{"$f":"IF(DOORLIST!D94=\"\",\"\",DOORLIST!D94)","v":""},null,null,null,null,null,null,null,null,null,null,null,null,null,"A"]
[null,{"$f":"IF(DOORLIST!B95=\"\",\"\",DOORLIST!B95)","v":""},{"$f":"IF(DOORLIST!C95=\"\",\"\",DOORLIST!C95)","v":""},{"$f":"IF(DOORLIST!D95=\"\",\"\",DOORLIST!D95)","v":""},null,null,null,null,null,null,null,null,null,null,null,null,null,"A"]
[null,{"$f":"IF(DOORLIST!B96=\"\",\"\",DOORLIST!B96)","v":""},{"$f":"IF(DOORLIST!C96=\"\",\"\",DOORLIST!C96)","v":""},{"$f":"IF(DOORLIST!D96=\"\",\"\",DOORLIST!D96)","v":""},null,null,null,null,null,null,null,null,null,null,null,null,null,"A"]
[null,{"$f":"IF(DOORLIST!B97=\"\",\"\",DOORLIST!B97)","v":""},{"$f":"IF(DOORLIST!C97=\"\",\"\",DOORLIST!C97)","v":""},{"$f":"IF(DOORLIST!D97=\"\",\"\",DOORLIST!D97)","v":""},null,null,null,null,null,null,null,null,null,null,null,null,null,"A"]
[null,{"$f":"IF(DOORLIST!B98=\"\",\"\",DOORLIST!B98)","v":""},{"$f":"IF(DOORLIST!C98=\"\",\"\",DOORLIST!C98)","v":""},{"$f":"IF(DOORLIST!D98=\"\",\"\",DOORLIST!D98)","v":""},null,null,null,null,null,null,null,null,null,null,null,null,null,"A"]
[null,{"$f":"IF(DOORLIST!B99=\"\",\"\",DOORLIST!B99)","v":""},{"$f":"IF(DOORLIST!C99=\"\",\"\",DOORLIST!C99)","v":""},{"$f":"IF(DOORLIST!D99=\"\",\"\",DOORLIST!D99)","v":""},null,null,null,null,null,null,null,null,null,null,null,null,null,"A"]
[null,{"$f":"IF(DOORLIST!B100=\"\",\"\",DOORLIST!B100)","v":""},{"$f":"IF(DOORLIST!C100=\"\",\"\",DOORLIST!C100)","v":""},{"$f":"IF(DOORLIST!D100=\"\",\"\",DOORLIST!D100)","v":""},null,null,null,null,null,null,null,null,null,null,null,null,null,"A"]
[null,{"$f":"IF(DOORLIST!B101=\"\",\"\",DOORLIST!B101)","v":""},{"$f":"IF(DOORLIST!C101=\"\",\"\",DOORLIST!C101)","v":""},{"$f":"IF(DOORLIST!D101=\"\",\"\",DOORLIST!D101)","v":""},null,null,null,null,null,null,null,null,null,null,null,null,null,"A"]
[null,{"$f":"IF(DOORLIST!B102=\"\",\"\",DOORLIST!B102)","v":""},{"$f":"IF(DOORLIST!C102=\"\",\"\",DOORLIST!C102)","v":""},{"$f":"IF(DOORLIST!D102=\"\",\"\",DOORLIST!D102)","v":""},null,null,null,null,null,null,null,null,null,null,null,null,null,"A"]
[null,{"$f":"IF(DOORLIST!B103=\"\",\"\",DOORLIST!B103)","v":""},{"$f":"IF(DOORLIST!C103=\"\",\"\",DOORLIST!C103)","v":""},{"$f":"IF(DOORLIST!D103=\"\",\"\",DOORLIST!D103)","v":""},null,null,null,null,null,null,null,null,null,null,null,null,null,"A"]
[null,{"$f":"IF(DOORLIST!B104=\"\",\"\",DOORLIST!B104)","v":""},{"$f":"IF(DOORLIST!C104=\"\",\"\",DOORLIST!C104)","v":""},{"$f":"IF(DOORLIST!D104=\"\",\"\",DOORLIST!D104)","v":""},null,null,null,null,null,null,null,null,null,null,null,null,null,"A"]
[null,{"$f":"IF(DOORLIST!B105=\"\",\"\",DOORLIST!B105)","v":""},{"$f":"IF(DOORLIST!C105=\"\",\"\",DOORLIST!C105)","v":""},{"$f":"IF(DOORLIST!D105=\"\",\"\",DOORLIST!D105)","v":""},null,null,null,null,null,null,null,null,null,null,null,null,null,"A"]
[null,{"$f":"IF(DOORLIST!B106=\"\",\"\",DOORLIST!B106)","v":""},{"$f":"IF(DOORLIST!C106=\"\",\"\",DOORLIST!C106)","v":""},{"$f":"IF(DOORLIST!D106=\"\",\"\",DOORLIST!D106)","v":""},null,null,null,null,null,null,null,null,null,null,null,null,null,"A"]
[null,{"$f":"IF(DOORLIST!B107=\"\",\"\",DOORLIST!B107)","v":""},{"$f":"IF(DOORLIST!C107=\"\",\"\",DOORLIST!C107)","v":""},{"$f":"IF(DOORLIST!D107=\"\",\"\",DOORLIST!D107)","v":""},null,null,null,null,null,null,null,null,null,null,null,null,null,"A"]
[null,{"$f":"IF(DOORLIST!B108=\"\",\"\",DOORLIST!B108)","v":""},{"$f":"IF(DOORLIST!C108=\"\",\"\",DOORLIST!C108)","v":""},{"$f":"IF(DOORLIST!D108=\"\",\"\",DOORLIST!D108)","v":""},null,null,null,null,null,null,null,null,null,null,null,null,null,"A"]
[null,{"$f":"IF(DOORLIST!B109=\"\",\"\",DOORLIST!B109)","v":""},{"$f":"IF(DOORLIST!C109=\"\",\"\",DOORLIST!C109)","v":""},{"$f":"IF(DOORLIST!D109=\"\",\"\",DOORLIST!D109)","v":""},null,null,null,null,null,null,null,null,null,null,null,null,null,"A"]
[null,{"$f":"IF(DOORLIST!B110=\"\",\"\",DOORLIST!B110)","v":""},{"$f":"IF(DOORLIST!C110=\"\",\"\",DOORLIST!C110)","v":""},{"$f":"IF(DOORLIST!D110=\"\",\"\",DOORLIST!D110)","v":""},null,null,null,null,null,null,null,null,null,null,null,null,null,"A"]
[null,{"$f":"IF(DOORLIST!B111=\"\",\"\",DOORLIST!B111)","v":""},{"$f":"IF(DOORLIST!C111=\"\",\"\",DOORLIST!C111)","v":""},{"$f":"IF(DOORLIST!D111=\"\",\"\",DOORLIST!D111)","v":""},null,null,null,null,null,null,null,null,null,null,null,null,null,"A"]
[null,{"$f":"IF(DOORLIST!B112=\"\",\"\",DOORLIST!B112)","v":""},{"$f":"IF(DOORLIST!C112=\"\",\"\",DOORLIST!C112)","v":""},{"$f":"IF(DOORLIST!D112=\"\",\"\",DOORLIST!D112)","v":""},null,null,null,null,null,null,null,null,null,null,null,null,null,"A"]
[null,{"$f":"IF(DOORLIST!B113=\"\",\"\",DOORLIST!B113)","v":""},{"$f":"IF(DOORLIST!C113=\"\",\"\",DOORLIST!C113)","v":""},{"$f":"IF(DOORLIST!D113=\"\",\"\",DOORLIST!D113)","v":""},null,null,null,null,null,null,null,null,null,null,null,null,null,"A"]
[null,{"$f":"IF(DOORLIST!B114=\"\",\"\",DOORLIST!B114)","v":""},{"$f":"IF(DOORLIST!C114=\"\",\"\",DOORLIST!C114)","v":""},{"$f":"IF(DOORLIST!D114=\"\",\"\",DOORLIST!D114)","v":""},null,null,null,null,null,null,null,null,null,null,null,null,null,"A"]
[null,{"$f":"IF(DOORLIST!B115=\"\",\"\",DOORLIST!B115)","v":""},{"$f":"IF(DOORLIST!C115=\"\",\"\",DOORLIST!C115)","v":""},{"$f":"IF(DOORLIST!D115=\"\",\"\",DOORLIST!D115)","v":""},null,null,null,null,null,null,null,null,null,null,null,null,null,"A"]
[null,{"$f":"IF(DOORLIST!B116=\"\",\"\",DOORLIST!B116)","v":""},{"$f":"IF(DOORLIST!C116=\"\",\"\",DOORLIST!C116)","v":""},{"$f":"IF(DOORLIST!D116=\"\",\"\",DOORLIST!D116)","v":""},null,null,null,null,null,null,null,null,null,null,null,null,null,"A"]
[null,{"$f":"IF(DOORLIST!B117=\"\",\"\",DOORLIST!B117)","v":""},{"$f":"IF(DOORLIST!C117=\"\",\"\",DOORLIST!C117)","v":""},{"$f":"IF(DOORLIST!D117=\"\",\"\",DOORLIST!D117)","v":""},null,null,null,null,null,null,null,null,null,null,null,null,null,"A"]
[null,{"$f":"IF(DOORLIST!B118=\"\",\"\",DOORLIST!B118)","v":""},{"$f":"IF(DOORLIST!C118=\"\",\"\",DOORLIST!C118)","v":""},{"$f":"IF(DOORLIST!D118=\"\",\"\",DOORLIST!D118)","v":""},null,null,null,null,null,null,null,null,null,null,null,null,null,"A"]
[null,{"$f":"IF(DOORLIST!B119=\"\",\"\",DOORLIST!B119)","v":""},{"$f":"IF(DOORLIST!C119=\"\",\"\",DOORLIST!C119)","v":""},{"$f":"IF(DOORLIST!D119=\"\",\"\",DOORLIST!D119)","v":""},null,null,null,null,null,null,null,null,null,null,null,null,null,"A"]
[null,{"$f":"IF(DOORLIST!B120=\"\",\"\",DOORLIST!B120)","v":""},{"$f":"IF(DOORLIST!C120=\"\",\"\",DOORLIST!C120)","v":""},{"$f":"IF(DOORLIST!D120=\"\",\"\",DOORLIST!D120)","v":""},null,null,null,null,null,null,null,null,null,null,null,null,null,"A"]
[null,{"$f":"IF(DOORLIST!B121=\"\",\"\",DOORLIST!B121)","v":""},{"$f":"IF(DOORLIST!C121=\"\",\"\",DOORLIST!C121)","v":""},{"$f":"IF(DOORLIST!D121=\"\",\"\",DOORLIST!D121)","v":""},null,null,null,null,null,null,null,null,null,null,null,null,null,"A"]
[null,{"$f":"IF(DOORLIST!B122=\"\",\"\",DOORLIST!B122)","v":""},{"$f":"IF(DOORLIST!C122=\"\",\"\",DOORLIST!C122)","v":""},{"$f":"IF(DOORLIST!D122=\"\",\"\",DOORLIST!D122)","v":""},null,null,null,null,null,null,null,null,null,null,null,null,null,"A"]
[null,{"$f":"IF(DOORLIST!B123=\"\",\"\",DOORLIST!B123)","v":""},{"$f":"IF(DOORLIST!C123=\"\",\"\",DOORLIST!C123)","v":""},{"$f":"IF(DOORLIST!D123=\"\",\"\",DOORLIST!D123)","v":""},null,null,null,null,null,null,null,null,null,null,null,null,null,"A"]
[null,{"$f":"IF(DOORLIST!B124=\"\",\"\",DOORLIST!B124)","v":""},{"$f":"IF(DOORLIST!C124=\"\",\"\",DOORLIST!C124)","v":""},{"$f":"IF(DOORLIST!D124=\"\",\"\",DOORLIST!D124)","v":""},null,null,null,null,null,null,null,null,null,null,null,null,null,"A"]
[null,{"$f":"IF(DOORLIST!B125=\"\",\"\",DOORLIST!B125)","v":""},{"$f":"IF(DOORLIST!C125=\"\",\"\",DOORLIST!C125)","v":""},{"$f":"IF(DOORLIST!D125=\"\",\"\",DOORLIST!D125)","v":""},null,null,null,null,null,null,null,null,null,null,null,null,null,"A"]
[null,{"$f":"IF(DOORLIST!B126=\"\",\"\",DOORLIST!B126)","v":""},{"$f":"IF(DOORLIST!C126=\"\",\"\",DOORLIST!C126)","v":""},{"$f":"IF(DOORLIST!D126=\"\",\"\",DOORLIST!D126)","v":""},null,null,null,null,null,null,null,null,null,null,null,null,null,"A"]
[null,{"$f":"IF(DOORLIST!B127=\"\",\"\",DOORLIST!B127)","v":""},{"$f":"IF(DOORLIST!C127=\"\",\"\",DOORLIST!C127)","v":""},{"$f":"IF(DOORLIST!D127=\"\",\"\",DOORLIST!D127)","v":""},null,null,null,null,null,null,null,null,null,null,null,null,null,"A"]
[null,{"$f":"IF(DOORLIST!B128=\"\",\"\",DOORLIST!B128)","v":""},{"$f":"IF(DOORLIST!C128=\"\",\"\",DOORLIST!C128)","v":""},{"$f":"IF(DOORLIST!D128=\"\",\"\",DOORLIST!D128)","v":""},null,null,null,null,null,null,null,null,null,null,null,null,null,"A"]
[null,{"$f":"IF(DOORLIST!B129=\"\",\"\",DOORLIST!B129)","v":""},{"$f":"IF(DOORLIST!C129=\"\",\"\",DOORLIST!C129)","v":""},{"$f":"IF(DOORLIST!D129=\"\",\"\",DOORLIST!D129)","v":""},null,null,null,null,null,null,null,null,null,null,null,null,null,"A"]
[null,{"$f":"IF(DOORLIST!B130=\"\",\"\",DOORLIST!B130)","v":""},{"$f":"IF(DOORLIST!C130=\"\",\"\",DOORLIST!C130)","v":""},{"$f":"IF(DOORLIST!D130=\"\",\"\",DOORLIST!D130)","v":""},null,null,null,null,null,null,null,null,null,null,null,null,null,"A"]
[null,{"$f":"IF(DOORLIST!B131=\"\",\"\",DOORLIST!B131)","v":""},{"$f":"IF(DOORLIST!C131=\"\",\"\",DOORLIST!C131)","v":""},{"$f":"IF(DOORLIST!D131=\"\",\"\",DOORLIST!D131)","v":""},null,null,null,null,null,null,null,null,null,null,null,null,null,"A"]
[null,{"$f":"IF(DOORLIST!B132=\"\",\"\",DOORLIST!B132)","v":""},{"$f":"IF(DOORLIST!C132=\"\",\"\",DOORLIST!C132)","v":""},{"$f":"IF(DOORLIST!D132=\"\",\"\",DOORLIST!D132)","v":""},null,null,null,null,null,null,null,null,null,null,null,null,null,"A"]
[null,{"$f":"IF(DOORLIST!B133=\"\",\"\",DOORLIST!B133)","v":""},{"$f":"IF(DOORLIST!C133=\"\",\"\",DOORLIST!C133)","v":""},{"$f":"IF(DOORLIST!D133=\"\",\"\",DOORLIST!D133)","v":""},null,null,null,null,null,null,null,null,null,null,null,null,null,"A"]
[null,{"$f":"IF(DOORLIST!B134=\"\",\"\",DOORLIST!B134)","v":""},{"$f":"IF(DOORLIST!C134=\"\",\"\",DOORLIST!C134)","v":""},{"$f":"IF(DOORLIST!D134=\"\",\"\",DOORLIST!D134)","v":""},null,null,null,null,null,null,null,null,null,null,null,null,null,"A"]
[null,{"$f":"IF(DOORLIST!B135=\"\",\"\",DOORLIST!B135)","v":""},{"$f":"IF(DOORLIST!C135=\"\",\"\",DOORLIST!C135)","v":""},{"$f":"IF(DOORLIST!D135=\"\",\"\",DOORLIST!D135)","v":""},null,null,null,null,null,null,null,null,null,null,null,null,null,"A"]
[null,{"$f":"IF(DOORLIST!B136=\"\",\"\",DOORLIST!B136)","v":""},{"$f":"IF(DOORLIST!C136=\"\",\"\",DOORLIST!C136)","v":""},{"$f":"IF(DOORLIST!D136=\"\",\"\",DOORLIST!D136)","v":""},null,null,null,null,null,null,null,null,null,null,null,null,null,"A"]
[null,{"$f":"IF(DOORLIST!B137=\"\",\"\",DOORLIST!B137)","v":""},{"$f":"IF(DOORLIST!C137=\"\",\"\",DOORLIST!C137)","v":""},{"$f":"IF(DOORLIST!D137=\"\",\"\",DOORLIST!D137)","v":""},null,null,null,null,null,null,null,null,null,null,null,null,null,"A"]
[null,{"$f":"IF(DOORLIST!B138=\"\",\"\",DOORLIST!B138)","v":""},{"$f":"IF(DOORLIST!C138=\"\",\"\",DOORLIST!C138)","v":""},{"$f":"IF(DOORLIST!D138=\"\",\"\",DOORLIST!D138)","v":""},null,null,null,null,null,null,null,null,null,null,null,null,null,"A"]
[null,{"$f":"IF(DOORLIST!B139=\"\",\"\",DOORLIST!B139)","v":""},{"$f":"IF(DOORLIST!C139=\"\",\"\",DOORLIST!C139)","v":""},{"$f":"IF(DOORLIST!D139=\"\",\"\",DOORLIST!D139)","v":""},null,null,null,null,null,null,null,null,null,null,null,null,null,"A"]
[null,{"$f":"IF(DOORLIST!B140=\"\",\"\",DOORLIST!B140)","v":""},{"$f":"IF(DOORLIST!C140=\"\",\"\",DOORLIST!C140)","v":""},{"$f":"IF(DOORLIST!D140=\"\",\"\",DOORLIST!D140)","v":""},null,null,null,null,null,null,null,null,null,null,null,null,null,"A"]
[null,{"$f":"IF(DOORLIST!B141=\"\",\"\",DOORLIST!B141)","v":""},{"$f":"IF(DOORLIST!C141=\"\",\"\",DOORLIST!C141)","v":""},{"$f":"IF(DOORLIST!D141=\"\",\"\",DOORLIST!D141)","v":""},null,null,null,null,null,null,null,null,null,null,null,null,null,"A"]
[null,{"$f":"IF(DOORLIST!B142=\"\",\"\",DOORLIST!B142)","v":""},{"$f":"IF(DOORLIST!C142=\"\",\"\",DOORLIST!C142)","v":""},{"$f":"IF(DOORLIST!D142=\"\",\"\",DOORLIST!D142)","v":""},null,null,null,null,null,null,null,null,null,null,null,null,null,"A"]
[null,{"$f":"IF(DOORLIST!B143=\"\",\"\",DOORLIST!B143)","v":""},{"$f":"IF(DOORLIST!C143=\"\",\"\",DOORLIST!C143)","v":""},{"$f":"IF(DOORLIST!D143=\"\",\"\",DOORLIST!D143)","v":""},null,null,null,null,null,null,null,null,null,null,null,null,null,"A"]
[null,{"$f":"IF(DOORLIST!B144=\"\",\"\",DOORLIST!B144)","v":""},{"$f":"IF(DOORLIST!C144=\"\",\"\",DOORLIST!C144)","v":""},{"$f":"IF(DOORLIST!D144=\"\",\"\",DOORLIST!D144)","v":""},null,null,null,null,null,null,null,null,null,null,null,null,null,"A"]
[null,{"$f":"IF(DOORLIST!B145=\"\",\"\",DOORLIST!B145)","v":""},{"$f":"IF(DOORLIST!C145=\"\",\"\",DOORLIST!C145)","v":""},{"$f":"IF(DOORLIST!D145=\"\",\"\",DOORLIST!D145)","v":""},null,null,null,null,null,null,null,null,null,null,null,null,null,"A"]
[null,{"$f":"IF(DOORLIST!B146=\"\",\"\",DOORLIST!B146)","v":""},{"$f":"IF(DOORLIST!C146=\"\",\"\",DOORLIST!C146)","v":""},{"$f":"IF(DOORLIST!D146=\"\",\"\",DOORLIST!D146)","v":""},null,null,null,null,null,null,null,null,null,null,null,null,null,"A"]
[null,{"$f":"IF(DOORLIST!B147=\"\",\"\",DOORLIST!B147)","v":""},{"$f":"IF(DOORLIST!C147=\"\",\"\",DOORLIST!C147)","v":""},{"$f":"IF(DOORLIST!D147=\"\",\"\",DOORLIST!D147)","v":""},null,null,null,null,null,null,null,null,null,null,null,null,null,"A"]
[null,{"$f":"IF(DOORLIST!B148=\"\",\"\",DOORLIST!B148)","v":""},{"$f":"IF(DOORLIST!C148=\"\",\"\",DOORLIST!C148)","v":""},{"$f":"IF(DOORLIST!D148=\"\",\"\",DOORLIST!D148)","v":""},null,null,null,null,null,null,null,null,null,null,null,null,null,"A"]
[null,{"$f":"IF(DOORLIST!B149=\"\",\"\",DOORLIST!B149)","v":""},{"$f":"IF(DOORLIST!C149=\"\",\"\",DOORLIST!C149)","v":""},{"$f":"IF(DOORLIST!D149=\"\",\"\",DOORLIST!D149)","v":""},null,null,null,null,null,null,null,null,null,null,null,null,null,"A"]
[null,{"$f":"IF(DOORLIST!B150=\"\",\"\",DOORLIST!B150)","v":""},{"$f":"IF(DOORLIST!C150=\"\",\"\",DOORLIST!C150)","v":""},{"$f":"IF(DOORLIST!D150=\"\",\"\",DOORLIST!D150)","v":""},null,null,null,null,null,null,null,null,null,null,null,null,null,"A"]
[null,{"$f":"IF(DOORLIST!B151=\"\",\"\",DOORLIST!B151)","v":""},{"$f":"IF(DOORLIST!C151=\"\",\"\",DOORLIST!C151)","v":""},{"$f":"IF(DOORLIST!D151=\"\",\"\",DOORLIST!D151)","v":""},null,null,null,null,null,null,null,null,null,null,null,null,null,"A"]
[null,{"$f":"IF(DOORLIST!B152=\"\",\"\",DOORLIST!B152)","v":""},{"$f":"IF(DOORLIST!C152=\"\",\"\",DOORLIST!C152)","v":""},{"$f":"IF(DOORLIST!D152=\"\",\"\",DOORLIST!D152)","v":""},null,null,null,null,null,null,null,null,null,null,null,null,null,"A"]
[null,{"$f":"IF(DOORLIST!B153=\"\",\"\",DOORLIST!B153)","v":""},{"$f":"IF(DOORLIST!C153=\"\",\"\",DOORLIST!C153)","v":""},{"$f":"IF(DOORLIST!D153=\"\",\"\",DOORLIST!D153)","v":""},null,null,null,null,null,null,null,null,null,null,null,null,null,"A"]
[null,{"$f":"IF(DOORLIST!B154=\"\",\"\",DOORLIST!B154)","v":""},{"$f":"IF(DOORLIST!C154=\"\",\"\",DOORLIST!C154)","v":""},{"$f":"IF(DOORLIST!D154=\"\",\"\",DOORLIST!D154)","v":""},null,null,null,null,null,null,null,null,null,null,null,null,null,"A"]
[null,{"$f":"IF(DOORLIST!B155=\"\",\"\",DOORLIST!B155)","v":""},{"$f":"IF(DOORLIST!C155=\"\",\"\",DOORLIST!C155)","v":""},{"$f":"IF(DOORLIST!D155=\"\",\"\",DOORLIST!D155)","v":""},null,null,null,null,null,null,null,null,null,null,null,null,null,"A"]
[null,{"$f":"IF(DOORLIST!B156=\"\",\"\",DOORLIST!B156)","v":""},{"$f":"IF(DOORLIST!C156=\"\",\"\",DOORLIST!C156)","v":""},{"$f":"IF(DOORLIST!D156=\"\",\"\",DOORLIST!D156)","v":""},null,null,null,null,null,null,null,null,null,null,null,null,null,"A"]
[null,{"$f":"IF(DOORLIST!B157=\"\",\"\",DOORLIST!B157)","v":""},{"$f":"IF(DOORLIST!C157=\"\",\"\",DOORLIST!C157)","v":""},{"$f":"IF(DOORLIST!D157=\"\",\"\",DOORLIST!D157)","v":""},null,null,null,null,null,null,null,null,null,null,null,null,null,"A"]
[null,{"$f":"IF(DOORLIST!B158=\"\",\"\",DOORLIST!B158)","v":""},{"$f":"IF(DOORLIST!C158=\"\",\"\",DOORLIST!C158)","v":""},{"$f":"IF(DOORLIST!D158=\"\",\"\",DOORLIST!D158)","v":""},null,null,null,null,null,null,null,null,null,null,null,null,null,"A"]
[null,{"$f":"IF(DOORLIST!B159=\"\",\"\",DOORLIST!B159)","v":""},{"$f":"IF(DOORLIST!C159=\"\",\"\",DOORLIST!C159)","v":""},{"$f":"IF(DOORLIST!D159=\"\",\"\",DOORLIST!D159)","v":""},null,null,null,null,null,null,null,null,null,null,null,null,null,"A"]
[null,{"$f":"IF(DOORLIST!B160=\"\",\"\",DOORLIST!B160)","v":""},{"$f":"IF(DOORLIST!C160=\"\",\"\",DOORLIST!C160)","v":""},{"$f":"IF(DOORLIST!D160=\"\",\"\",DOORLIST!D160)","v":""},null,null,null,null,null,null,null,null,null,null,null,null,null,"A"]
[null,{"$f":"IF(DOORLIST!B161=\"\",\"\",DOORLIST!B161)","v":""},{"$f":"IF(DOORLIST!C161=\"\",\"\",DOORLIST!C161)","v":""},{"$f":"IF(DOORLIST!D161=\"\",\"\",DOORLIST!D161)","v":""},null,null,null,null,null,null,null,null,null,null,null,null,null,"A"]
[null,{"$f":"IF(DOORLIST!B162=\"\",\"\",DOORLIST!B162)","v":""},{"$f":"IF(DOORLIST!C162=\"\",\"\",DOORLIST!C162)","v":""},{"$f":"IF(DOORLIST!D162=\"\",\"\",DOORLIST!D162)","v":""},null,null,null,null,null,null,null,null,null,null,null,null,null,"A"]
[null,{"$f":"IF(DOORLIST!B163=\"\",\"\",DOORLIST!B163)","v":""},{"$f":"IF(DOORLIST!C163=\"\",\"\",DOORLIST!C163)","v":""},{"$f":"IF(DOORLIST!D163=\"\",\"\",DOORLIST!D163)","v":""},null,null,null,null,null,null,null,null,null,null,null,null,null,"A"]
[null,{"$f":"IF(DOORLIST!B164=\"\",\"\",DOORLIST!B164)","v":""},{"$f":"IF(DOORLIST!C164=\"\",\"\",DOORLIST!C164)","v":""},{"$f":"IF(DOORLIST!D164=\"\",\"\",DOORLIST!D164)","v":""},null,null,null,null,null,null,null,null,null,null,null,null,null,"A"]
[null,{"$f":"IF(DOORLIST!B165=\"\",\"\",DOORLIST!B165)","v":""},{"$f":"IF(DOORLIST!C165=\"\",\"\",DOORLIST!C165)","v":""},{"$f":"IF(DOORLIST!D165=\"\",\"\",DOORLIST!D165)","v":""},null,null,null,null,null,null,null,null,null,null,null,null,null,"A"]
[null,{"$f":"IF(DOORLIST!B166=\"\",\"\",DOORLIST!B166)","v":""},{"$f":"IF(DOORLIST!C166=\"\",\"\",DOORLIST!C166)","v":""},{"$f":"IF(DOORLIST!D166=\"\",\"\",DOORLIST!D166)","v":""},null,null,null,null,null,null,null,null,null,null,null,null,null,"A"]
[null,{"$f":"IF(DOORLIST!B167=\"\",\"\",DOORLIST!B167)","v":""},{"$f":"IF(DOORLIST!C167=\"\",\"\",DOORLIST!C167)","v":""},{"$f":"IF(DOORLIST!D167=\"\",\"\",DOORLIST!D167)","v":""},null,null,null,null,null,null,null,null,null,null,null,null,null,"A"]
[null,{"$f":"IF(DOORLIST!B168=\"\",\"\",DOORLIST!B168)","v":""},{"$f":"IF(DOORLIST!C168=\"\",\"\",DOORLIST!C168)","v":""},{"$f":"IF(DOORLIST!D168=\"\",\"\",DOORLIST!D168)","v":""},null,null,null,null,null,null,null,null,null,null,null,null,null,"A"]
[null,{"$f":"IF(DOORLIST!B169=\"\",\"\",DOORLIST!B169)","v":""},{"$f":"IF(DOORLIST!C169=\"\",\"\",DOORLIST!C169)","v":""},{"$f":"IF(DOORLIST!D169=\"\",\"\",DOORLIST!D169)","v":""},null,null,null,null,null,null,null,null,null,null,null,null,null,"A"]
[null,{"$f":"IF(DOORLIST!B170=\"\",\"\",DOORLIST!B170)","v":""},{"$f":"IF(DOORLIST!C170=\"\",\"\",DOORLIST!C170)","v":""},{"$f":"IF(DOORLIST!D170=\"\",\"\",DOORLIST!D170)","v":""},null,null,null,null,null,null,null,null,null,null,null,null,null,"A"]

{"sheet":"CALCULATIONS","index":2,"n_rows":141,"n_cols":42,"rows_kept":141,"cut":false,"hidden":true,"merged":[[0,33,0,41],[3,2,3,3],[1,2,1,3],[0,27,0,30],[16,27,17,27]]}
[null,null,"Version",null,null,null,null,"REVISIONS - HISTORY:",null,null,null,null,null,null,null,null,null,null,null,null,null,null,null,null,null,null,null,"statische Vorgaben (max. mögl. Auswahl)",null,null,null,null,"dyn. Berechn.","mögl. Auswahl der Optionen anhand des (unteren) gewählten Türtyps"]
[null,null,"Vers. 7.3 \"Marlene\" - 10.10.2023",null,null,null,null,"4.00 - Übernahme v. AKR",null,null,null,"5.5 - Komfortverbesserungen",null,null,null,null,null,null,null,null,null,null,null,null,null,null,null,"Türtypen","Scharniere","Schließer","Anz. Bänder",null,"Akt. Typ","LL-D3-A60","LL-D4-A60","LL-DL1-A60","LL-DL2-A60","LYD-3plus-A60","LM50-D2-B15","LM50-D4-B15","LYD-3plus-B15"]
[null,null,null,null,null,null,null,"4.1 - bessere Kennz. von Floor bei B",null,null,null,"5.6 - Berechnung der Bandanzahl hinzugefügt",null,null,null,null,null,null,null,null,null,null,null,null,null,null,null,"LL-D4-A60","VX7748/100","ITS96",2,null,{"$f":"ROW(a)+0*NOW()","v":4},"A0","A0","A0","A0","A0","B0","B0","B0","NO"]
[null,null,"abbreviation",null,null,null,null,"4.2 - VN-Bänder erlaubt bei LYD-A60",null,null,null,"5.7 - Neudefinition WANN 4th Band",null,null,null,null,null,null,null,null,null,null,null,null,null,null,null,"LYD-3plus-A60","VX7729/100","ITS96 w. EMF",3,null,{"$f":"IF(ISERROR(MATCH(INDIRECT(\"DOORLIST!$G\"&AG3),AH2:AP2,0))=TRUE,8,MATCH(INDIRECT(\"DOORLIST!$G\"&AG3),AH2:AP2,0))","v":8},"A30","A30","A30","A30","A30","B15","B15","B15"]
[null,null,"ST","Steel",null,null,null,"       - Schlauchkl. erlaubt bei LYD-A60",null,null,null,"5.7 - Fehlerkorrektur Fensterhöhe (wg. 2-flg.)",null,null,null,null,null,null,null,null,null,null,null,null,null,"Spalte",null,"LL-DL1-A60","TE526","TS93 on HS",4,null,null,"A60","A60","A60","A60","A60"]
[null,null,"SS","Stainless Steel",null,null,null,"4.3 - kl. Optimierungen u. Fehlerbereinigungen",null,null,null,"5.8 - neu definierte Bandabstände hinzugefügt",null,null,null,null,null,null,null,null,null,null,null,null,null,{"$f":"IF(DOORLIST!K5=\"\",\"\",DOORLIST!K5)","v":""},null,"LL-DL2-A60","TE626 A8","TS93 on RS",null,null,null,"A","A","A","A","A","STD","STD","STD"]
[null,null,"HS","Hinge Side",null,null,null,"       - dyn. Bandauswahl hinzugefügt",null,null,null,"5.9 - Fehler in Formel f. Bandabstände korrigiert",null,null,null,null,null,null,null,null,null,null,null,null,null,"Optionen",null,"LM50-D2-B15",null,"ED100 on HS",null,null,null,"B","B","B","B","B","FLO","FLO","FLO"]
[null,null,"RS","Rear Side",null,null,null,"       - Fenster bei LM50-D3-B15 n. möglich!",null,null,null,"6.0 - mit Bandabstand (unten) von 250 für Tectus und auch für VX. Sowie Umstellung auf VX implementiert.",null,null,null,null,null,null,null,null,null,null,null,null,null,{"$f":"IF(AA8<>\"\",INDEX(T:T,AA8),\"\")","v":""},{"$f":"IF(COUNTIF(Y:Y,\">=\"&$Z$6)>=ROW()-7,MATCH(LARGE(Y:Y,COUNTIF(Y:Y,\">=\"&$Z$6)-ROW()+8),Y:Y,0),\"\")","v":""},"LM50-D4-B15",null,"ED100 on RS",null,null,null,"C","C","C","C","C"]
[null,null,"BR","Brushed",null,null,null,"4.4 - Hinweis auf die Bandverlängerung überarbeitet, speziell WAS die 12mm sind.",null,null,null,"6.4 - größere Optimierungen w. Kopfzeile ein/ausblenden, div. Formatierungsoptimierungen etc.",null,null,null,null,null,null,null,null,null,null,null,null,null,"","","LYD-3plus-B15",null,null,null,null,null,"STD","STD","STD","STD","STD",1,1,1]
[null,null,"PO","Polished",null,null,null,"4.5 - Hinweis auf Zertifikatsbegrenzungen (bei CO+CH)",null,null,null,"6.5 - Hinweis auf unterem MR-Schenkel hinzugefügt (FAH)",null,null,null,null,null,null,null,null,null,null,null,null,null,"","","akt. Spalte:",{"$f":"COLUMN(a)+0*NOW()","v":5},null,null,null,null,null,null,null,null,null,2,2,2]
[null,null,"S","Straight",null,null,null,"5.0 - komplette Neubearbeitung",null,null,null,"6.6 - Fehler bei Auswahl B-Tür m. A-Klasse behoben und LM50-D3 entfernt",null,null,null,null,null,null,null,null,null,null,null,null,null,"","","akt. Zeile:",{"$f":"ROW(a)+0*NOW()","v":4},null,null,null,null,null,null,null,null,null,3,3,3]
[null,null,"F","Folded",null,null,null,null,null,null,null,null,null,null,null,null,null,null,null,null,null,null,null,null,null,"","","aktuelles CO:",{"$f":"INDIRECT(\"DOORLIST!I\" & akt_Zeile)","v":"HELP"},"akt. Türentyp:",{"$f":"INDIRECT(\"DOORLIST!G\" & akt_Zeile)","v":0},null,null,null,null,null,null,null,4,4,4]
[null,null,"PR","Primer",null,null,null,null,null,null,null,null,null,null,null,null,null,null,null,null,null,null,null,null,null,"","","aktuelles CH:",{"$f":"INDIRECT(\"DOORLIST!J\" & akt_Zeile)","v":0},"Typ = korrekt?",{"$f":"IF(OR(AE12=\"LL-D3-A60\",AE12=\"LL-D4-A60\",AE12=\"LL-DL1-A60\",AE12=\"LL-DL2-A60\",AE12=\"LYD-3plus-A60\",AE12=\"LM50-D2-B15\",AE12=\"LM50-D4-B15\",AE12=\"LYD-3plus-B15\"),\"Ja\",\"No\")","v":"No"},null,null,null,null,null,null,null,5,5,5]
[null,null,null,null,null,null,null,null,null,null,null,null,null,null,null,null,null,null,null,null,null,null,null,null,null,"",""]
[null,null,null,null,null,null,1,"sequential number",12,"hinge side (L)eft / (R)ight",null,"for A and B class doors available)",26,"style of frame:",36,"hole f. PZ/WC:",43,"remark (in short form)",null,null,null,null,null,null,null,{"$f":"IF(COUNTIF(Y:Y,\">=\"&$Z$6)>=ROW()-8,\"…\",\"\")","v":""},null,"akt. Flügelanzahl:",{"$f":"IF(AE13=\"No\",\"\",IF(AG4=3,2,1))","v":""},"akt. Schw.typ:",{"$f":"INDIRECT(\"DOORLIST!Q\" & akt_Zeile)","v":0},null,null,"VX7729/100","VX7729/100","VX7729/100","VX7729/100","VX7729/100","VX7729/100","VX7729/100","VX7729/100"]
[null,"Hilfszelle:",true,"f. Ein/Ausblenden jede 2. Zeile",null,null,2,"revision number",13,"material of installation frame",19,"material of door frame:",null,"(S)traight or (F)oldover (HS/RS)",null,"(Y)es or (N)o on HS/RS",44,"date of planned approval",null,null,null,null,null,null,null,"Info Text",null,"akt. Fenster:",{"$f":"INDIRECT(\"DOORLIST!AO\" & akt_Zeile)","v":0},null,null,null,null,"VX7748/100","VX7748/100","VX7748/100","VX7748/100","VX7748/100","VX7748/100","VX7748/100","VX7748/100"]
[null,null,null,"WAHR = Einblenden",null,null,3,"door number by customer",null,"(ST)eel or (S)tainless (S)teel",null,"(ST)eel or (S)tainless (S)teel",27,"dimension of frame angle (HS/RS)",37,"type of door contact",45,"date of 1st approval",null,null,null,null,null,null,null,{"$f":"IF(OR(ISERROR(VLOOKUP(DOORLIST!K6,Z8:AA14,2,FALSE))=TRUE,DOORLIST!K6=\"\"),Z18,INDEX(U:U,VLOOKUP(DOORLIST!K6,Z8:AA14,2,FALSE)))","v":0},null,"akt. FeHöhe: \n(=Auswahl)",{"$f":"IF(OR(ISNUMBER(AC16),ISNUMBER(FIND(\"x\",AC16))),IF(AG4=3,akt_CH-0.25*akt_CO,akt_CH-0.5*akt_CO),\"--\")","v":{"$error":"#VALUE!"}},null,null,null,null,null,"TE626 A8",null,"TE626 A8","TE526",null,"TE526","TE526"]
[null,null,null,"FALSCH = Ausblenden",null,null,4,"designation/position on board",14,"surface of installation frame",20,"frame surface on hinge side",28,"type of hinge",38,"hinges, striking plate, sill cover,",46,"responsibility",null,null,null,null,null,null,null,null,null,null,"it's allowed to overwrite automatical data/text ;)"]
[null,null,null,null,null,null,5,"designation/position on board",null,"ST:(PR)imer SS:(BR)ushed",21,"frame surface on reverse side",29,"\"X\" for 12mm extended hinge",null,"lock shield - (PO)lished or",48,"remarks? (marker for 2nd sheet)",null,null,null,null,null,null,null,"Picture",null,"akt. Fläche:",{"$f":"akt_CO*akt_CH/1000000","v":{"$error":"#VALUE!"}},null,null,null,null,"METAL \nFRAME","METAL \nFRAME","METAL \nFRAME","METAL \nFRAME","METAL \nFRAME","METAL \nFRAME","METAL \nFRAME","METAL \nFRAME"]
[null,null,null,null,null,null,6,"Type designation of door",15,"dimension of installation frames",22,"leaf surface on hinge side",30,"interval hinge to hinge to…",null,"(BR)ushed or CUSTOM ?",null,null,null,null,null,null,null,null,null,{"$f":"IF(OR(ISERROR(VLOOKUP(DOORLIST!K6,Z8:AA14,2,FALSE))=TRUE,DOORLIST!K6=\"\"),1,VLOOKUP(DOORLIST!K6,Z8:AA14,2,FALSE))","v":1},null,"Referenzfläche",1.68,"(ab 0,8mx2,1m)",null,null,null,"ABS \nEDGE","ABS \nEDGE",null,null,null,null,"ABS \nEDGE"]
[null,null,null,null,null,null,7,"fire rating A0 to A60",16,"type of sill: A, B or C for A-class",23,"leaf surface on reverse side",31,"colour of sealing",39,"type of an optional noise gasket",null,null,null,null,null,null,null,null,null,null,null,"akt. Bandtyp:",{"$f":"INDIRECT(\"DOORLIST!AC\" & akt_Zeile)","v":0},null,null,null,null,{"$f":"IF(AG4<>1,\"=2\",IF(AND(akt_CH<1500,AC19>=Ref4thBand),\"CO to wide for CH!\",\"-\"))","v":"=2"},{"$f":"IF(AG4<>2,\"=2\",IF(AND(akt_CH<1500,AC19>=Ref4thBand),\"CO to wide for CH!\",\"-\"))","v":"=2"},null,"=2",{"$f":"IF(AG4<>4,\"=2\",IF(AND(akt_CH<1500,AC19>=Ref4thBand),\"CO to wide for CH!\",\"-\"))","v":"=2"},{"$f":"IF(AG4<>5,\"=2\",IF(AND(akt_CH<1500,AC19>=Ref4thBand),\"CO to wide for CH!\",\"-\"))","v":"=2"},{"$f":"IF(AG4<>6,\"=2\",IF(AND(akt_CH<1500,AC19>=Ref4thBand),\"CO to wide for CH!\",\"-\"))","v":"=2"},{"$f":"IF(AG4<>7,\"=2\",IF(AND(akt_CH<1500,AC19>=Ref4thBand),\"CO to wide for CH!\",\"-\"))","v":"=2"}]
[null,null,null,null,null,null,8,"(C)lear (O)pening (in frame)",null,"and STD or FLO for B-class doors",24,"type of frame around leaf",32,"type of door closer",40,"clear dimension of the window,",null,null,null,null,null,null,null,null,null,null,null,"u. damit Abstand:",{"$f":"IF(akt_Bandtyp=0,\"n.a.\",IF(akt_Bandtyp=\"TE626 A8\",300,IF(akt_Bandtyp=\"TE526\",250,150)))","v":"n.a."},"fix Abst. Unten:",{"$f":"IF(akt_Bandtyp=\"TE626 A8\",300,250)","v":250},null,null,{"$f":"IF(AG4<>1,\"=3\",IF(akt_CH<1500,\"-\",IF(AND(akt_CH>=1500,AC19<Ref4thBand),3,\"-\")))","v":"=3"},{"$f":"IF(AG4<>2,\"=3\",IF(akt_CH<1500,\"-\",IF(AND(akt_CH>=1500,AC19<Ref4thBand),3,\"-\")))","v":"=3"},null,"=3",{"$f":"IF(AG4<>4,\"=3\",IF(akt_CH<1500,\"-\",IF(AND(akt_CH>=1500,AC19<Ref4thBand),3,IF(AND(AC19>=Ref4thBand,OR(akt_Bandtyp<>\"TE526\",akt_Bandverl<>\"Y\")),\"3\",\"-\"))))","v":"=3"},{"$f":"IF(AG4<>5,\"=3\",IF(akt_CH<1500,\"-\",IF(AND(akt_CH>=1500,AC19<Ref4thBand),3,\"-\")))","v":"=3"},{"$f":"IF(AG4<>6,\"=3\",IF(akt_CH<1500,\"-\",IF(AND(akt_CH>=1500,AC19<Ref4thBand),3,\"-\")))","v":"=3"},{"$f":"IF(AG4<>7,\"=3\",IF(akt_CH<1500,\"-\",IF(AND(akt_CH>=1500,AC19<Ref4thBand),3,IF(AND(AC19>=Ref4thBand,OR(akt_Bandtyp<>\"TE526\",akt_Bandverl<>\"Y\")),\"3\",\"-\"))))","v":"=3"}]
[null,null,null,null,null,null,9,"(C)lear (H)eight (sill-frame)",17,"Gasket layer (1 or 2 for door",null,"P:Profile or EB: Edge Band",33,"type designation of door lock",null,"diameter or height x width",null,null,null,null,null,null,null,null,null,null,null,"akt. Bandverl.:",{"$f":"IF(INDIRECT(\"DOORLIST!AD\" & akt_Zeile)=\"\",\"N\",INDIRECT(\"DOORLIST!AD\" & akt_Zeile))","v":"N"},null,null,null,null,{"$f":"IF(AG4<>1,\"=4\",IF(akt_CH<1500,\"-\",IF(AND(akt_CH>=1500,AC19>=Ref4thBand),\"(4)\",\"(4)\")))","v":"=4"},{"$f":"IF(AG4<>2,\"=4\",IF(akt_CH<1500,\"-\",IF(AND(akt_CH>=1500,AC19>=Ref4thBand),\"(4)\",\"(4)\")))","v":"=4"},4,"=4",{"$f":"IF(AG4<>4,\"=4\",IF(akt_CH<1500,\"-\",IF(AND(akt_CH>=1500,AC19>=Ref4thBand,akt_Bandtyp=\"TE526\",OR(akt_Bandverl=\"Y\",akt_Bandverl=\"x\")),\"4!\",\"(4)\")))","v":"=4"},{"$f":"IF(AG4<>5,\"=4\",IF(akt_CH<1500,\"-\",IF(AND(akt_CH>=1500,AC19>=Ref4thBand),\"(4)\",\"(4)\")))","v":"=4"},{"$f":"IF(AG4<>6,\"=4\",IF(akt_CH<1500,\"-\",IF(AND(akt_CH>=1500,AC19>=Ref4thBand),\"(4)\",\"(4)\")))","v":"=4"},{"$f":"IF(AG4<>7,\"=4\",IF(akt_CH<1500,\"-\",IF(AND(akt_CH>=1500,AC19>=Ref4thBand,akt_Bandtyp=\"TE526\",OR(akt_Bandverl=\"Y\",akt_Bandverl=\"x\")),\"4!\",\"(4)\")))","v":"=4"}]
[null,null,null,null,null,null,10,"(H)andle (H)eight above sill",null,"type LYD-3plus-B15)",25,"surface of frame around leaf",34,"backset of door lock",41,"height of optional window",null,null,null,null,null,null,null,null,null,null,null,"=> 4. Band J/N ?",{"$f":"IF(akt_Bandtyp=\"TE626 A8\",\"NEIN\",IF(akt_TürTyp=\"LL-DL1-A60\",\"JA\",IF(AND(akt_TürTyp=\"LL-DL2-A60\",OR(akt_Bandtyp=\"VX7748/100\",akt_Bandtyp=\"VX7729/100\")),\"JA\",IF(OR(akt_Bandtyp=\"VX7748/100\",akt_Bandtyp=\"VX7729/100\"),\"NEIN\",IF(AND(akt_Bandtyp=\"TE526\",AC23=\"Y\",AC19>=AC20),\"JA\",\"NEIN\")))))","v":{"$error":"#VALUE!"}},"nur: WENN TE526 UND Bandverl. UND Referenzfläche",null,null,null,null,null,null,null,{"$f":"IF(AG4<>4,\"=3\",IF(akt_CH<1500,\"-\",IF(AND(akt_CH>=1500,AC19<Ref4thBand),3,IF(AND(AC19>=Ref4thBand,akt_Bandtyp<>\"TE526\"),\"3\",IF(AND(AC19>=Ref4thBand,akt_Bandtyp=\"TE526\"),\"-\",\"öhm, Fehler\")))))","v":"=3"}]
[null,null,null,null,null,null,11,"subdivision double doorleafs",18,"Type of door frame (different types",null,"(colour, (BR)ushed, (PO)lished)",35,"type designation of handle",42,"hose port (Y)es or (N)o",null,null,null,null,null,null,null,null,null,null,null,"dyn. Bandabst.:",{"$f":"IF(OR(akt_TürTyp=0,akt_Silltyp=0,akt_CO=0,akt_CH=0,akt_Bandtyp=0,akt_Bandverl=0),\"Input incompl.!/Eingaben unvollst.!\",\nIF(AND(AC15=1,akt_CH<1500),AC22&\"/\"&akt_CH+IF(akt_Silltyp=\"B\",40,20)-AC22-AE22&\"/ (only 2 hinges)\",\nIF(AND(AC15=1,akt_CH>=1500,akt_Bandtyp=\"TE626 A8\"),AC22&\"/\"&akt_CH+IF(akt_Silltyp=\"B\",40,20)-AC22-AE22&\"/\",\nIF(AND(AC15=1,akt_CH>=1500,AC24=\"Nein\"),AC22&\"/370/\"&akt_CH+IF(akt_Silltyp=\"B\",40,20)-AC22-AE22-370,\nIF(AND(AC15=1,akt_CH>=1500,AC24=\"Ja\"),AC22&\"/370/\"&akt_CH+IF(akt_Silltyp=\"B\",40,20)-(AC22+AE22+2*370)&\"/370\",\nIF(AND(AC15=2,akt_CH<1390),\" => CH f. 2-wg. too small/f. 2-flg. zu klein!\",\nIF(AND(AC15=2,akt_Bandtyp=\"TE626 A8\",akt_CH>=1390),AC22&\"/\"&akt_CH+IF(akt_Silltyp=\"B\",40,20)-AC22-AE22&\"/\",\nIF(AND(AC15=2,akt_CH>=1390),AC22&\"/370/\"&akt_CH+IF(akt_Silltyp=\"B\",40,20)-AC22-AE22-(2*370)&\"/370\",\"...Failure/Fehler wg. fehl. Werte?\"))))))))","v":"Input incompl.!/Eingaben unvollst.!"}]
[]
[null,null,null,null,null,null,null,null,null,null,null,null,null,null,null,null,null,null,null,null,"Spaltenbreite 27",null,"Spaltenbreite 38,14"]
[null,null,null,null,null,null,null,null,null,null,null,null,null,null,null,null,null,null,"COLUMN","OPTION","INFO TEXT",null,"INFO PIC",null,"stat_OptList"]
[null,null,null,null,null,null,null,null,null,null,null,null,null,null,null,null,null,null,1,"SEQ. NO."," - no action needed - ",null,"SORRY - NO IMAGE AVAILABLE",null,{"$f":"IF(S29=$Z$6,S29+(ROW()/1000),\"\")","v":""}]
[null,null,null,null,null,null,null,null,null,null,null,null,null,null,null,null,null,null,2,"REV. NO.","If you get a revision of yet approval doors (for factory or offer…) you should marked these doors with a new revision number. \nBut the list processed also 5 revisions! Don't forget to fill the rev.-date field in head of these list.",null,"SORRY - NO IMAGE AVAILABLE",null,""]
[null,null,null,null,null,null,null,null,null,null,null,null,null,null,null,null,null,null,3,"DOOR NO.","Please fill in these cells the unique identification number of the doors.",null,"SORRY - NO IMAGE AVAILABLE",null,""]
[null,null,null,null,null,null,null,null,null,null,null,null,null,null,null,null,null,null,4,"DES. POS. I","optional for other identification, like \"room on hingside\".",null,"SORRY - NO IMAGE AVAILABLE",null,""]
[null,null,null,null,null,null,null,null,null,null,null,null,null,null,null,null,null,null,5,"DES. POS. II","optional for other identification, like \"room on rearside\".",null,"SORRY - NO IMAGE AVAILABLE",null,""]
[null,null,null,null,null,null,null,null,null,null,null,null,null,null,null,null,null,null,6,"TYPES","If you wish to covered a doorleaf, please check you needs an \"extended\" hinge. \nTECTUS hinges in extended version (\"+12\") means the hinge projecting ~8mm over the blank doorleaf and allow to covered max. 12mm cladding.\nExtended VX-hinges similar ~12mm more projecting as normal.",null,"LL-D2-A60 // LL-D3-A60\nSingle hinged A class doors\nLL-DL1-A60\nDouble hinged A class door\nLM50-D2-B15 // LM50-D3-B15\nSingle leaf hinged B class doors\nLYD-3plus-A60 // LYD-3plus-B15\nSingle leaf A / B class door with visible (VX-hinges only) or concealed hinges (TECTUS). \nBoth for blank or covered leaf available.",null,""]
[null,null,null,null,null,null,null,null,null,null,null,null,null,null,null,null,null,null,7,"RATING","Fire rating depending on door type. A0-A60 for A class doors and \nB0-B15 for B class doors. \nSpecial execution as C class doors on demand",null,"SORRY - NO IMAGE AVAILABLE",null,""]
[null,null,null,null,null,null,null,null,null,null,null,null,null,null,null,null,null,null,8,"CO","(C)lear (O)pening, dimension in frame, door leaf not taken into account.\n\nLimitations of listed datas (in  various colors) show \"borders\".\nYELLOW = you selected an adverse range.\nRED = you selected an forbidden range (by certification etc).",null,null,null,""]
[null,null,null,null,null,null,null,null,null,null,null,null,null,null,null,null,null,null,9,"CH","(C)lear (H)eight, dimension between frame and top of sill.\n\nLimitations of listed datas (in  various colors) show \"borders\".\nYELLOW = you selected an adverse range.\nRED = you selected an forbidden range (by certification etc).",null,null,null,""]
[null,null,null,null,null,null,null,null,null,null,null,null,null,null,null,null,null,null,10,"HH","(H)eight of (H)andle above top of sill to centre of handle. Please refer to shown difference between sill types A/C and B! ",null,null,null,""]
[null,null,null,null,null,null,null,null,null,null,null,null,null,null,null,null,null,null,11,"SD","(S)ubdivision (D)ouble doorleafs, means the splitting of the two doorleafs relating to the complete CO. For example \"50/50\" oder \"70/30\". Note, every leaf must be wide as 550 and the first number means always the active leaf - 2nd the inactive leaf!",null,"SORRY - NO IMAGE AVAILABLE",null,""]
[null,null,null,null,null,null,null,null,null,null,null,null,null,null,null,null,null,null,12,"L","Left hinged door. Visible hinges on left hand side",null,null,null,""]
[null,null,null,null,null,null,null,null,null,null,null,null,null,null,null,null,null,null,12,"R","Right hinged door. Visible hinges on right hand side",null,null,null,""]
[null,null,null,null,null,null,null,null,null,null,null,null,null,null,null,null,null,null,12,"L/R","Double hinged door with movable leaf on left hand side and fixed leaf on right hand side",null,null,null,""]
[null,null,null,null,null,null,null,null,null,null,null,null,null,null,null,null,null,null,12,"R/L","Double hinged door with movable leaf on right hand side and fixed leaf on left hand side",null,null,null,""]
[null,null,null,null,null,null,null,null,null,null,null,null,null,null,null,null,null,null,13,"MAT","Chose material of installation frame. ST for steel (standard) or SS for stainless steel.\n\nNote: stainless steel frames only available in brushed or bare surface.",null,"SORRY - NO IMAGE AVAILABLE",null,""]
[null,null,null,null,null,null,null,null,null,null,null,null,null,null,null,null,null,null,14,"SURF.","Chose covering for installation frame. \nSteel frames are supplied with a powder coating (RAL 9016) as standard. \nStainless steel frames only with brushed surface (BR) or bare. \n\nOther colors on demand.",null,"SORRY - NO IMAGE AVAILABLE",null,""]
[null,null,null,null,null,null,null,null,null,null,null,null,null,null,null,null,null,null,15,"DIM.","The STANDARD frame has an angle 60to60mm. However, we can offer variant dimensions. Synthax is BOTTOM side / LEFT side / RIGHT side / TOP side - DEPTH. \nFor example: 100/100/100/100 -120 = 100mm around & 120mm depth. The maximum dim. is 120mm.",null,null,null,""]
[null,null,null,null,null,null,null,null,null,null,null,null,null,null,null,null,null,null,16,"A","FOR A-CLASS DOORS ONLY\nSill execution with type designation \"A\". Combination of flat sill with installation frame.\n(Design for LL-Types & LYD-3plus-A60 are similar). \nThe bottom angle of the installation frame is normally 40mm. Widther dimension possible, please fill Column 43 - REMARKS.",null,null,null,""]
[null,null,null,null,null,null,null,null,null,null,null,null,null,null,null,null,null,null,16,"B","FOR A-CLASS DOORS ONLY\nSill execution with type design \"B\"\n(Different version for A-class type LL / LYD).\n\nThe bottom angle of the installation frame is normally 40mm. Widther dimension possible, please fill Column 43 - REMARKS.",null,null,null,""]
[null,null,null,null,null,null,null,null,null,null,null,null,null,null,null,null,null,null,16,"C","FOR A-CLASS DOORS ONLY\nSill execution with type design \"C\". Flat sill for installation on steel deck directly.\n(Design for LL-Types & LYD-3plus-A60 are similar).",null,null,null,""]
[null,null,null,null,null,null,null,null,null,null,null,null,null,null,null,null,null,null,16,"STD \n(standard)","FOR B-CLASS DOORS ONLY\nStandard raised sill type with decorative cover of stainless steel for installation on all bare floor types.\n\nThese sill is similar to type \"C\" from A-class doors. Just without steel strip from an installation frame.",null,null,null,""]
[null,null,null,null,null,null,null,null,null,null,null,null,null,null,null,null,null,null,16,"FLO \n(floor)","FOR B-CLASS DOORS ONLY\nSpecial sill execution for installation of persistant floor system (to maintain certification floor systems needs to be non combustible). Please give thickness of floor system together with door information. The floor material, like stone, replace the sill construction.",null,null,null,""]
[null,null,null,null,null,null,null,null,null,null,null,null,null,null,null,null,null,null,17,"Single (ID1)","Single gasket layer execution of door frame. Type available for door all doortypes. \nOnly type LYD-3plus-B15 is also in a version of double gasket layer available.",null,null,null,""]
[null,null,null,null,null,null,null,null,null,null,null,null,null,null,null,null,null,null,17,"Double (ID2)","Double gasket layer execution of door frame. Type available for door LYD-3plus-B15 only",null,null,null,""]
[null,null,null,null,null,null,null,null,null,null,null,null,null,null,null,null,null,null,18,"1 (B Class)","B class door frame execution type 1 with relevant detail for wall / frame installation connection",null,null,null,""]
[null,null,null,null,null,null,null,null,null,null,null,null,null,null,null,null,null,null,18,"2 (B Class)","B class door frame execution type 2 with relevant detail for wall / frame installation connection",null,null,null,""]
[null,null,null,null,null,null,null,null,null,null,null,null,null,null,null,null,null,null,18,"3 (B Class)","B class door frame execution type 3 with relevant detail for wall / frame installation connection",null,null,null,""]
[null,null,null,null,null,null,null,null,null,null,null,null,null,null,null,null,null,null,18,"4 (B Class)","B class door frame execution type 4 with relevant detail for wall / frame installation connection",null,null,null,""]
[null,null,null,null,null,null,null,null,null,null,null,null,null,null,null,null,null,null,18,"5 (B Class)","B class door frame execution type 5 with relevant detail for wall / frame installation connection",null,null,null,""]
[null,null,null,null,null,null,null,null,null,null,null,null,null,null,null,null,null,null,18,"A Cl.-LL","Standard A class door frame for door type LL; geometry for installation in standard installation frame",null,null,null,""]
[null,null,null,null,null,null,null,null,null,null,null,null,null,null,null,null,null,null,18,"A Cl.-3plus","Standard A class door frame for door type LYD-3plus-A60; geometry for installation in standard installation frame",null,null,null,""]
[null,null,null,null,null,null,null,null,null,null,null,null,null,null,null,null,null,null,19,"MAT","Chose material of door frame. \nST for steel (standard) or \nSS for stainless steel\n\nSS in...\nBRUSHED - grain 240, \nPOLISHED - 3D or \nlacquered SS available",null,"SORRY - NO IMAGE AVAILABLE",null,""]
[null,null,null,null,null,null,null,null,null,null,null,null,null,null,null,null,null,null,20,"FRAME HS","Colour type of door frame.\n(H)inge (S)ide as RAL or NCS code. Stainless steel frame surfaces are brushed as a standard. (Two different colours on hinge and reverse side will be seperated under the gasket).\nIf no gloss level specified we use semi-gloss!",null,"SORRY - NO IMAGE AVAILABLE",null,""]
[null,null,null,null,null,null,null,null,null,null,null,null,null,null,null,null,null,null,21,"FRAME RS","Colour type of door frame. (R)everse (S)ide as RAL or NCS code. Stainless steel frame surfaces are brushed as a standard. (Two different colours on hinge and reverse side will be seperated under the gasket).\nIf no gloss level specified we use semi-gloss!",null,"SORRY - NO IMAGE AVAILABLE",null,""]
[null,null,null,null,null,null,null,null,null,null,null,null,null,null,null,null,null,null,22,"Design HS","Design of leaf surface on (H)inge (S)ide [front]. Standard covering is a HPL of white colour for A class doors and no decorative cover (blank metal sheet) for B class door types.\nIf no gloss level specified we use semi-gloss!",null,"SORRY - NO IMAGE AVAILABLE",null,{"$f":"IF(S64=$Z$6,S64+(ROW()/1000),\"\")","v":""}]
[null,null,null,null,null,null,null,null,null,null,null,null,null,null,null,null,null,null,23,"Design RS","Design of leaf surface on (R)ear (S)ide [back]. Standard covering is a HPL of white colour for A class doors and no decorative cover (blank metal sheet) for B class door types.\nIf no gloss level specified we use semi-gloss!",null,"SORRY - NO IMAGE AVAILABLE",null,{"$f":"IF(S65=$Z$6,S65+(ROW()/1000),\"\")","v":""}]
[null,null,null,null,null,null,null,null,null,null,null,null,null,null,null,null,null,null,24,"EDGE TYPE","Leaf edge protection could be exectuted with a stainless steel U-(P)rofile or with (E)dge (B)and, similar to furniture edges w. ABS edges. \n\n(EB) is for A-class doors type \nLL-D2-A60, \nLL-D3-A60 or\nLL-DL1-A60 only!",null,"SORRY - NO IMAGE AVAILABLE",null,""]
[null,null,null,null,null,null,null,null,null,null,null,null,null,null,null,null,null,null,25,"SURF. EDGE","Surface of edge protection. Stainless steel profiles to be (BR)ushed as a standard, (PO)lished or painted (pls. give RAL or NCS code). For the egde band pls. name colour type. \nIf no gloss level specified we use semi-gloss!",null,"SORRY - NO IMAGE AVAILABLE",null,""]
[null,null,null,null,null,null,null,null,null,null,null,null,null,null,null,null,null,null,null,null,null,null,null,null,6.8000000000000005E-2]
[null,null,null,null,null,null,null,null,null,null,null,null,null,null,null,null,null,null,26,"F/F","version of frame ((S)traight or (F)oldover.\nFirst notification for HS, second for RS. \nAngle lenght of 13mm for folded and 30mm for straight version is LETHE standard. However many other dimensions possible.",null,null,null,""]
[null,null,null,null,null,null,null,null,null,null,null,null,null,null,null,null,null,null,26,"S/S","version of frame ((S)traight or (F)oldover)(HS/GS) - Angle lenght of 13mm for folded and 30mm for straight version is LETHE standard. However many other dimensions possible.",null,null,null,""]
[null,null,null,null,null,null,null,null,null,null,null,null,null,null,null,null,null,null,26,"S/F or F/S","version of frame ((S)traight or (F)oldover)(HS/RS) - angle lenght of 13mm for folded and 30mm for straight version is LETHE standard. However many other dimensions possible. \nValid for type S/F and F/S",null,null,null,""]
[null,null,null,null,null,null,null,null,null,null,null,null,null,null,null,null,null,null,27,"DIM","dimension of frame angle HS/RS.\nFirst notification for HS, second for RS.\nAngle lenght of 13mm for folded and 30mm for straight version is LETHE standard. However many other dimensions possible.",null,"SORRY - NO IMAGE AVAILABLE",null,""]
[null,null,null,null,null,null,null,null,null,null,null,null,null,null,null,null,null,null,28,"VX7729/100","Hinge type Simonswerke VX 7729/100 for unrebated doors in combination with receiver VX 7512 3D. Load capacity 120 kg, knuckle l: 95 mm, d: 20 mm. Internal torsion-proof pin, concealed, maintenance-free,  axial-radial slide bearings.\n\nOptional extention on next column!",null,null,null,""]
[null,null,null,null,null,null,null,null,null,null,null,null,null,null,null,null,null,null,28,"VX7748/100","Hinge type Simonswerke  VX 7748/100 for unrebated doors in combination with receiver VX 7512 3D. Load capacity 120 kg, knuckle l: 95 mm; d: 20 mm. Internal torsion-proof pin, concealed, maintenance-free, axial-radial slide bearings.\n\nOptional extention on next column!\n",null,null,null,""]
[null,null,null,null,null,null,null,null,null,null,null,null,null,null,null,null,null,null,28,"TE526","Hinge type Simonswerke TECTUS TE526. Concealed, non visible stainless steel hinge. 3D adjustable - single gasket frame equipped with 2 for B15 and w. 3 for A60, double gasket frame equipped always with 3 pcs. as a standard. \nFor door type LYD-3plus-B15 & LYD-3plus-A60 only.\nOptional extention on next column!",null,null,null,""]
[null,null,null,null,null,null,null,null,null,null,null,null,null,null,null,null,null,null,29,"Y = 12mm","Hinges extended by 12mm (standard) for real wood leaf coverings. \nHinge type Tectus in extended version allow an ~12mm cladding outside the door leaf and frame surface. (The hinge itself  projected ~8mm outside).\n\"Y\" means once, you wish the extended version of the hinge.",null,null,null,""]
[null,null,null,null,null,null,null,null,null,null,null,null,null,null,null,null,null,null,null,null,null,null,null,null,7.6999999999999999E-2]
[null,null,null,null,null,null,null,null,null,null,null,null,null,null,null,null,null,null,30,"Hinge interval","predefinition of requiered hinge interval. \n1st # is measured from (inner) upper framecorner to middle of superior hinge. All further hinges are from middle to middle. \nThe rest (last not showed interval) is an repeating of the 1st interval.",null,null,null,""]
[null,null,null,null,null,null,null,null,null,null,null,null,null,null,null,null,null,null,31,"GASKET","5 different standard colours available for gasket/seal",null,null,null,""]
[null,null,null,null,null,null,null,null,null,null,null,null,null,null,null,null,null,null,32,"ITS96","Internal door closer type \nDORMA ITS96 3-6 with sliding rail G96EMF (normally without EMF unit).\nITS96 3-6 is the LETHE standard door closer.\n\n(EMF-unit also available)\n\nMin. CO 550mm for ITS96 !!!",null,null,null,""]
[null,null,null,null,null,null,null,null,null,null,null,null,null,null,null,null,null,null,32,"TS93","External door closer type Dorma TS93 with sliding bar.\n\nRequired additional information: \nMounting side, HS or RS?\nWith EMF unit available, if desired.",null,null,null,""]
[null,null,null,null,null,null,null,null,null,null,null,null,null,null,null,null,null,null,32,"ED100","External door closer type Dorma ED100 with sliding bar.\n\nRequired additional information: \nMounting side, HS or RS?\n\nNote:\nFor Rearside installation is only usage a rodding/bar allow.\nOn Hingeside a normal sliding rail.",null,null,null,""]
[null,null,null,null,null,null,null,null,null,null,null,null,null,null,null,null,null,null,32,"opt. EMF","EMF (electric-magnetic-unit) if desired. Mounted in sliding channel/rail for ITS96 closer.\nThis, or optional Kendrion holder (eg. GT42), is for fire-class doors only allow. ",null,null,null,""]
[null,null,null,null,null,null,null,null,null,null,null,null,null,null,null,null,null,null,33,"72/65 PZ","LETHE standard lock type 72/65-PZ, backset 65mm, forend/shield 235mm, shield surface stainless steel or polished, stamped “LETHE”.\nLock for profile cylinder, also for toilet available.\nThis lock is similar and in any details much better then comparable Schwepper locks!",null,null,null,""]
[null,null,null,null,null,null,null,null,null,null,null,null,null,null,null,null,null,null,33,"72/65 WC","LETHE standard lock type 72/65-WC, backset 65mm, forend/shield 235mm, shield surface stainless steel or polished, stamped “LETHE”.\nLock for toilet, also for profile cylinder available.\nThis lock is similar and in any details much better then comparable Schwepper locks!",null,null,null,""]
[null,null,null,null,null,null,null,null,null,null,null,null,null,null,null,null,null,null,34,"BS","Backset of door lock, standard 65mm",null,"SORRY - NO IMAGE AVAILABLE",null,""]
[null,null,null,null,null,null,null,null,null,null,null,null,null,null,null,null,null,null,35,"HANDLE","Type designation of door handle.\nOnly needed if handle is part of your order.",null,"SORRY - NO IMAGE AVAILABLE",null,""]
[null,null,null,null,null,null,null,null,null,null,null,null,null,null,null,null,null,null,36,"PZ-WC-HOLE","If you wish holes for PZ (Euro cylinder) or WC. \nSyntax means for \nHingeSide / RearSide",null,null,null,""]
[null,null,null,null,null,null,null,null,null,null,null,null,null,null,null,null,null,null,37,"MA08","Magnetic door proximty switch type Bernstein MA08 (two-wired). Placed on top of frame.\n\nNote:\nOn double-winged doors we replace these contact through two type effeff 10405.10R----00. \nOne on each side.",null,null,null,""]
[null,null,null,null,null,null,null,null,null,null,null,null,null,null,null,null,null,null,37,"effeff","Only for double-winged doors, because here is no space enough for installation a Bernstein in top frame. ",null,null,null,""]
[null,null,null,null,null,null,null,null,null,null,null,null,null,null,null,null,null,null,38,"SURF UNITS","Door accessories like hinges, lock shield/forend, striking plate, sill cover and leaf protection frame executed in…\npolished (PO) or \nbrushed (BR) \n! BR = standard stainless steel surface !",null,"SORRY - NO IMAGE AVAILABLE",null,""]
[null,null,null,null,null,null,null,null,null,null,null,null,null,null,null,null,null,null,39,"15/30","Automatic door gasket Athmer Type 15/30 with release on one side",null,null,null,""]
[null,null,null,null,null,null,null,null,null,null,null,null,null,null,null,null,null,null,39,"Ultra","Automatic door gasket type Athmer \"Ultra\" for higher noise requirements. \nRelease on one side.",null,null,null,""]
[null,null,null,null,null,null,null,null,null,null,null,null,null,null,null,null,null,null,40,"W.Dim.","Window of round or rectangular shape with clear dimension of max. 500mm. \nFrame in brushed or polished stainless steel available. \n\nNote: for LYD-3plus-A60 new dim certificated. 600x750 (BxH). But not allowed on US Coast Guard! (max. 500x500)",null,null,null,""]
[null,null,null,null,null,null,null,null,null,null,null,null,null,null,null,null,null,null,41,"W.Height","Height of the window from top of decorative door sill to middle of window. The pre-selected dim is calculated \"current CH  - 1/2 CO\". \nThis assure an exact distance to left/rigt and top. You can override this dim.",null,"SORRY - NO IMAGE AVAILABLE",null,{"$f":"IF(S95=$Z$6,S95+(ROW()/1000),\"\")","v":""}]
[null,null,null,null,null,null,null,null,null,null,null,null,null,null,null,null,null,null,42,"HP","Hose port according SOLAS regulation with clear dimension of 150x150mm.\nThe hose port is always positioned on lockside. \n\nBy doortype LL-DL1-A60 (2-winged door) is an optional hoseport always on lock side of active wing positioned.",null,null,null,""]
[null,null,null,null,null,null,null,null,null,null,null,null,null,null,null,null,null,null,43,"Remarks","Please fill all other important informations, which not surrounded in former columns,  in these column. Please see also sheet #2 (\"EXTRAS\").",null,"SORRY - NO IMAGE AVAILABLE",null,""]
[null,null,null,null,null,null,null,null,null,null,null,null,null,null,null,null,null,null,44,"D.o.pl.\nApproval","Date of planned approval!\nFill with a target date for the planned approval.",null,"SORRY - NO IMAGE AVAILABLE",null,""]
[null,null,null,null,null,null,null,null,null,null,null,null,null,null,null,null,null,null,45,"D.o.Approval","Date of first approval!\nFill with an actually date if you mean the list is correct and ready to publish and for fabrication. \nFurther revisions changes nothing on this date! It's only for the first approval.",null,"SORRY - NO IMAGE AVAILABLE",null,""]
[null,null,null,null,null,null,null,null,null,null,null,null,null,null,null,null,null,null,46,"Responsibility","name of responsible person/admin for filling the list",null,"SORRY - NO IMAGE AVAILABLE",null,""]
[null,null,null,null,null,null,null,null,null,null,null,null,null,null,null,null,null,null,null,null,null,null,null,null,0.10100000000000001]
[null,null,null,null,null,null,null,null,null,null,null,null,null,null,null,null,null,null,48,"Hidden Remarks?","Is only a marker to show if any remarks are doing on the second excel sheet \"EXTRAS\". \n\nThe marker to be arise automatically",null,null,null,""]
[null,null,null,null,null,null,null,null,null,null,null,null,null,null,null,null,null,null,null,null,null,null,null,null,0.10299999999999999]
[null,null,null,null,null,null,null,null,null,null,null,null,null,null,null,null,null,null,null,null,null,null,null,null,0.104]
[null,null,null,null,null,null,null,null,null,null,null,null,null,null,null,null,null,null,null,null,null,null,null,null,0.105]
[null,null,null,null,null,null,null,null,null,null,null,null,null,null,null,null,null,null,null,null,null,null,null,null,0.106]
[null,null,null,null,null,null,null,null,null,null,null,null,null,null,null,null,null,null,null,null,null,null,null,null,0.107]
[null,null,null,null,null,null,null,null,null,null,null,null,null,null,null,null,null,null,null,null,null,null,null,null,0.108]
[null,null,null,null,null,null,null,null,null,null,null,null,null,null,null,null,null,null,null,null,null,null,null,null,0.109]
[null,null,null,null,null,null,null,null,null,null,null,null,null,null,null,null,null,null,null,null,null,null,null,null,0.11]
[null,null,null,null,null,null,null,null,null,null,null,null,null,null,null,null,null,null,null,null,null,null,null,null,0.111]
[null,null,null,null,null,null,null,null,null,null,null,null,null,null,null,null,null,null,null,null,null,null,null,null,0.112]
[null,null,null,null,null,null,null,null,null,null,null,null,null,null,null,null,null,null,null,null,null,null,null,null,0.113]
[null,null,null,null,null,null,null,null,null,null,null,null,null,null,null,null,null,null,null,null,null,null,null,null,0.114]
[null,null,null,null,null,null,null,null,null,null,null,null,null,null,null,null,null,null,null,null,null,null,null,null,0.115]
[null,null,null,null,null,null,null,null,null,null,null,null,null,null,null,null,null,null,null,null,null,null,null,null,0.11600000000000001]
[null,null,null,null,null,null,null,null,null,null,null,null,null,null,null,null,null,null,null,null,null,null,null,null,0.11700000000000001]
[null,null,null,null,null,null,null,null,null,null,null,null,null,null,null,null,null,null,null,null,null,null,null,null,0.11799999999999999]
[null,null,null,null,null,null,null,null,null,null,null,null,null,null,null,null,null,null,null,null,null,null,null,null,0.11899999999999999]
[null,null,null,null,null,null,null,null,null,null,null,null,null,null,null,null,null,null,null,null,null,null,null,null,0.12]
[null,null,null,null,null,null,null,null,null,null,null,null,null,null,null,null,null,null,null,null,null,null,null,null,0.121]
[null,null,null,null,null,null,null,null,null,null,null,null,null,null,null,null,null,null,null,null,null,null,null,null,0.122]
[null,null,null,null,null,null,null,null,null,null,null,null,null,null,null,null,null,null,null,null,null,null,null,null,0.123]
[null,null,null,null,null,null,null,null,null,null,null,null,null,null,null,null,null,null,null,null,null,null,null,null,0.124]
[null,null,null,null,null,null,null,null,null,null,null,null,null,null,null,null,null,null,null,null,null,null,null,null,0.125]
[null,null,null,null,null,null,null,null,null,null,null,null,null,null,null,null,null,null,null,null,null,null,null,null,0.126]
[null,null,null,null,null,null,null,null,null,null,null,null,null,null,null,null,null,null,null,null,null,null,null,null,0.127]
[null,null,null,null,null,null,null,null,null,null,null,null,null,null,null,null,null,null,null,null,null,null,null,null,0.128]
[null,null,null,null,null,null,null,null,null,null,null,null,null,null,null,null,null,null,null,null,null,null,null,null,0.129]
[null,null,null,null,null,null,null,null,null,null,null,null,null,null,null,null,null,null,null,null,null,null,null,null,0.13]
[null,null,null,null,null,null,null,null,null,null,null,null,null,null,null,null,null,null,null,null,null,null,null,null,0.13100000000000001]
[null,null,null,null,null,null,null,null,null,null,null,null,null,null,null,null,null,null,null,null,null,null,null,null,0.13200000000000001]
[null,null,null,null,null,null,null,null,null,null,null,null,null,null,null,null,null,null,null,null,null,null,null,null,0.13300000000000001]
[null,null,null,null,null,null,null,null,null,null,null,null,null,null,null,null,null,null,null,null,null,null,null,null,0.13400000000000001]
[null,null,null,null,null,null,null,null,null,null,null,null,null,null,null,null,null,null,null,null,null,null,null,null,0.13500000000000001]
[null,null,null,null,null,null,null,null,null,null,null,null,null,null,null,null,null,null,null,null,null,null,null,null,0.13600000000000001]
[null,null,null,null,null,null,null,null,null,null,null,null,null,null,null,null,null,null,null,null,null,null,null,null,{"$f":"IF(S137=$Z$6,S137+(ROW()/1000),\"\")","v":0.13700000000000001}]
[null,null,null,null,null,null,null,null,null,null,null,null,null,null,null,null,null,null,null,null,null,null,null,null,{"$f":"IF(S138=$Z$6,S138+(ROW()/1000),\"\")","v":0.13800000000000001}]
[null,null,null,null,null,null,null,null,null,null,null,null,null,null,null,null,null,null,null,null,null,null,null,null,{"$f":"IF(S139=$Z$6,S139+(ROW()/1000),\"\")","v":0.13900000000000001}]
[null,null,null,null,null,null,null,null,null,null,null,null,null,null,null,null,null,null,null,null,null,null,null,null,{"$f":"IF(S140=$Z$6,S140+(ROW()/1000),\"\")","v":0.14000000000000001}]
[null,null,null,null,null,null,null,null,null,null,null,null,null,null,null,null,null,null,null,null,null,null,null,null,{"$f":"IF(S141=$Z$6,S141+(ROW()/1000),\"\")","v":0.14099999999999999}]